{"text_format":"1","workbook":"xlsx","n_sheets":3,"sheets":["Ark1","Ark2","Ark3"],"not_rendered":{"charts":0,"images":0,"macros":1,"external_links":0,"defined_names":1,"comments":0,"pivot_tables":0},"unopened":[],"bounds":{"document_bytes":16777216,"sheet_cells":100000,"rows_first":2000,"rows_last":500,"rows_between":2000,"halvings":0,"cell_chars":16384,"cell_head_chars":4096},"cells_cut":0,"cells_raw":0,"read":"whole","date_system":"1900"}

{"sheet":"Ark1","index":0,"n_rows":288,"n_cols":74,"rows_kept":288,"cut":false,"hidden":false,"merged":[[6,67,11,67],[26,12,26,30],[27,12,27,30],[28,12,28,30],[29,12,29,30],[30,12,30,30],[31,12,31,30],[32,12,32,30],[3,0,3,5],[11,12,11,22]]}
[]
["Nøgle til de danske Urtesvirrefluer, Cheilosia, (Diptera: Syrphidae)"]
[null,null,null,null,null,null,null,null,"MAR",null,null,"APR",null,null,"MAJ",null," ","JUN",null,null,"JUL",null,null,"AUG",null,null,"SEP",null,null,"OKT",null," "," "]
["Vælg  nr. fra obs.tidslinien",null,null,null,null,null,null,1,2,3,4,5,6,7,8,9,10,11,12,13,14,15,16,17,18,19,20,21,22,23,24," "," "," "]
[null,null,null,null,null,null,null,null," ",null," ",null,null,null,null,"    "," ",null,null,null,null," "," "," "," "," "," "," "," "," "," "," ",null,null,null,null,null,null,null,null,null,null,null,null,null,null,"*","*",null,"*",null,"*",null,null,"*",null,"*",null,"*",null,null,null,"*",null,"*",null,null,null,null,null,null,null,null,"tom"]
[null,null,null,null,null,null,null,null,null,null,null,null,null,null,null,null,null," Cheilosia",null,null,null,{"$f":"IF(AL9=1,VLOOKUP(AL8,AL10:AM42,2,FALSE),\"sp.\")","v":"sp."},null,null,null,null,null,null,null,null,null,null,null,null,null,null,null,{"$f":"SUM(AU6+AV6+AX6+AZ6+BC6+BE6+BG6+BK6+BM6)","v":0},"Afkrydsede felter *",null,null,null,null,null,null,null,{"$f":"IF(J7=\" \",0,1)","v":0},{"$f":"IF(AW6=0,0,1)","v":0},{"$f":"+AV7+AW7","v":0},{"$f":"IF(AY6=0,0,1)","v":0},{"$f":"+AX7+AY7","v":0},{"$f":"IF(BA6=0,0,1)","v":0},{"$f":"+AZ7+BA7+BB7","v":0}," ",{"$f":"IF(BD6=0,0,1)","v":0},{"$f":"+BC7+BD7","v":0},{"$f":"IF(BF6=0,0,1)","v":0},{"$f":"+BE7+BF7","v":0},{"$f":"IF(BH6=0,0,1)","v":0},{"$f":"+BG7+BH7+BI7+BJ7","v":0}," "," ",{"$f":"IF(BL6=0,0,1)","v":0},{"$f":"+BK7+BL7","v":0},{"$f":"IF(BN6=0,0,1)","v":0},{"$f":"+BM7+BN7","v":0},null,1,{"$f":"SUM(BP6,-1)","v":0},null,1,null,null,1]
["Valgt nr. fra obs.tidslinien",null,null,null,null,null,null,null,null,{"$f":"BQ7","v":" "}," ",null,null,null,null,null," ",{"$f":"IF(AL9=1,VLOOKUP(AL8,BL50:BM82,2,FALSE),\"  Urtesvirreflue\")","v":"  Urtesvirreflue"},null,null,null,null,null,null,null,null,null,null,null,null,null,null,null,null,null,null,null,null,null,null,null,null,null,null,null,null,{"$f":"IF(J7=\" \",0,1)","v":0},{"$f":"IF(AH8=\" \",0,1)","v":0},{"$f":"IF(AH9=\" \",0,1)","v":0},{"$f":"IF(AH11=\" \",0,1)","v":0},{"$f":"IF(AH12=\" \",0,1)","v":0},{"$f":"IF(AH14=\" \",0,1)","v":0},{"$f":"IF(AH15=\" \",0,1)","v":0},{"$f":"IF(AH16=\" \",0,1)","v":0},{"$f":"IF(AH18=\" \",0,1)","v":0},{"$f":"IF(AH19=\" \",0,1)","v":0},{"$f":"IF(AH21=\" \",0,1)","v":0},{"$f":"IF(AH22=\" \",0,1)","v":0},{"$f":"IF(AH24=\" \",0,1)","v":0},{"$f":"IF(AH25=\" \",0,1)","v":0},{"$f":"IF(AH26=\" \",0,1)","v":0},{"$f":"IF(AH27=\" \",0,1)","v":0},{"$f":"IF(AH29=\" \",0,1)","v":0},{"$f":"IF(AH30=\" \",0,1)","v":0},{"$f":"IF(AH32=\" \",0,1)","v":0},{"$f":"IF(AH33=\" \",0,1)","v":0},null,"bp6 kopieres til K6",{"$f":"IF(BQ6<1,\" \",BQ6)","v":" "},null,null,null,null,2]
["Øjne sammenstødende (han)?",null,null,null,null,null,null,null,null,null," ",null,null,null,{"$f":"IF(AL6=0,\" \",IF((AL9>=2)*AND(AL6=AL8),AL9,\" \"))","v":" "},{"$f":"IF(AL6=0,\" \",IF((AL9>=2)*AND($AL$6=$AL$8),\"arter har de kendetegn, du har markeret.\",\" \"))","v":" "},null,null,null,null,null,null,null,null,null,null,null,null,null,null,null,null,null,{"$f":"IF(AI8,\"x\",\" \")","v":" "},0,null,null,{"$f":"MAX(AL10:AL42)","v":0},"Maks.",null,null,null,null,null,null,null,null,null,null,"m","u","s","g","rb","m","u","s","g","s","g","ri","gs","s","dg","m","l"," ",null,null,null,null,null,null,3]
["Øjne tydeligt adskilte (hun)?",null,null,null,null,null,null,null,null,null," ",null,null,null,null,{"$f":"IF(AL9=1,\"Fluen er nu bestemt.   Se ovenfor.\",\" \")","v":" "},null,null,null,null,null,null,null,null,null,null,null,null,null," ",null,null,null,{"$f":"IF(AI9,\"x\",\" \")","v":" "},0,null,null,{"$f":"COUNTIF(AL10:AL42,AL8)","v":33},"Ant. Maks",null,null,null,null,null,null,null,"T","M","F","  Hår",null," ","Føl"," ","Scut",null,"Lår",null,null,"Skben",null,null,"Fødd.",null,"Vi","ng",null,null,null,null,null,null,null,4]
[" ",null,null,null,null,null,null,null,null,null," ",null,null,{"$f":"IF(AL6>AL8,\"Afkrydsede kendetegn passer ikke med nøglen.\",\" \")","v":" "},null,null,null,null,null,null,null,null,null,null,null,null,null,null,null,null,null,null,null,null,null,null,null,{"$f":"SUM(AU10:BN10)","v":0},"albipila",null,null,null,null,null,null,null,{"$f":"IF(($J$7>=I$4)*AND($J$7<=P$4),1,\" \")","v":" "},{"$f":"IF($AH$8=\"x\",1,\" \")","v":" "},{"$f":"IF($AH$9=\"x\",1,\" \")","v":" "},{"$f":"IF($AH$11=\"x\",1,\" \")","v":" "}," "," ",{"$f":"IF($AH$15=\"x\",1,\" \")","v":" "}," "," ",{"$f":"IF($AH$19=\"x\",1,\" \")","v":" "},{"$f":"IF(($AH$8=\"x\")*AND($AH$21=\"x\"),1,\" \")","v":" "},{"$f":"IF(($AH$9=\"x\")*AND($AH$22=\"x\"),1,\" \")","v":" "}," ",{"$f":"IF($AH$25=\"x\",1,\" \")","v":" "},null,null,null,{"$f":"IF($AH$30=\"x\",1,\"  \")","v":"  "}," ",{"$f":"IF($AH$33=\"x\",1,\" \")","v":" "},null,null,null,null,null,null,null,5]
["Øjne behårede?",null,null,null,null,null,null,null,null,null,null,null,null,{"$f":"IF(AL6>AL8,\"Det gør en bestemmelse tvivlsom.   Prøv igen ! \",\" \")","v":" "},null,null,null,null,null,null,null,null,null,null,null,null,null,null,null,null,null,null,null,{"$f":"IF(AI11,\"x\",\" \")","v":" "},0,null,null,0,"albitarsis",null,null,null,null,null,null,null,{"$f":"IF(($J$7>=N$4)*AND($J$7<=W$4),1,\" \")","v":" "}," "," ",{"$f":"IF($AH$11=\"x\",1,\" \")","v":" "},{"$f":"IF(($AH$9=\"x\")*AND($AH$12=\"x\"),1,\" \")","v":" "},{"$f":"IF($AH$14=\"x\",1,\" \")","v":" "},null,null,{"$f":"IF($AH$18=\"x\",1,\" \")","v":" "},null,{"$f":"IF($AH$21=\"x\",1,\" \")","v":" "},null,{"$f":"IF($AH$24=\"x\",1,\" \")","v":" "},null,null,null,null,{"$f":"IF($AH$30=\"x\",1,\"  \")","v":"  "},{"$f":"IF(($AH$8=\"x\")*AND($AH$32=\"x\"),1,\" \")","v":" "},{"$f":"IF(($AH$9=\"x\")*AND($AH$33=\"x\"),1,\" \")","v":" "},null,null,null,null,null,null,null,6]
["Øjne ikke behårede?",null,null,null,null,null,null,null,null,null,null,null,null,null,null,null,null,null,null,null,null,null,null,null,null,null,null,null,null,null,null,null,null,{"$f":"IF(AI12,\"x\",\" \")","v":" "},0,null,null,0,"antiqua",null,null,null,null,null,null,null,{"$f":"IF(($J$7>=M$4)*AND($J$7<=O$4),1,\" \")","v":" "}," "," "," ",{"$f":"IF($AH$12=\"x\",1,\" \")","v":" "},{"$f":"IF($AH$14=\"x\",1,\" \")","v":" "}," "," ",{"$f":"IF($AH$18=\"x\",1,\" \")","v":" "}," "," "," ",{"$f":"IF($AH$24=\"x\",1,\" \")","v":" "},null,null,null,{"$f":"IF($AH$29=\"x\",1,\"  \")","v":"  "},null,{"$f":"IF(($AH$8=\"x\")*AND($AH$32=\"x\"),1,\" \")","v":" "},{"$f":"IF($AH$33=\"x\",1,\" \")","v":" "},null,null,null,null,null,null,null,7]
[" ",null,null,null,null,null,null,null,null,null," ",null,null,null,null,null,null,null,null,null,null,null,null,null,null,null,null,null,null,null,null,null," ",null,null,null,null,0,"bergenstammi",null,null,null,null,null,null,null,{"$f":"IF(($J$7>=N$4)*AND($J$7<=AB$4),1,\" \")","v":" "}," "," ",{"$f":"IF($AH$11=\"x\",1,\" \")","v":" "},null,null,{"$f":"IF($AH$15=\"x\",1,\" \")","v":" "},null,{"$f":"IF($AH$18=\"x\",1,\" \")","v":" "},null," ",null," ",null,{"$f":"IF($AH$26=\"x\",1,\" \")","v":" "},{"$f":"IF($AH$27=\"x\",1,\" \")","v":" "},null,{"$f":"IF($AH$30=\"x\",1,\"  \")","v":"  "}," ",{"$f":"IF($AH$33=\"x\",1,\" \")","v":" "},null,null,null,null,null,null,null,8]
["Følehorn  mørke?",null,null,null,null,null,null,null,null,null,null,null,null,1,{"$f":"IF($AL10=$AL$8,$AM10,\" \")","v":"albipila"},null,null,null,null,null,12,{"$f":"IF($AL21=$AL$8,$AM21,\" \")","v":"gigantea"},null,null,null,null,23,{"$f":"IF($AL32=$AL$8,$AM32,\" \")","v":"pubera"},null,null,null,null,null,{"$f":"IF(AI14,\"x\",\" \")","v":" "},0,null,null,0,"canicularis",null,null,null,null,null,null,null,{"$f":"IF(($J$7>=V$4)*AND($J$7<=AD$4),1,\" \")","v":" "}," "," ",{"$f":"IF($AH$11=\"x\",1,\" \")","v":" "},null,null,null,{"$f":"IF($AH$16=\"x\",1,\" \")","v":" "},null,{"$f":"IF($AH$19=\"x\",1,\" \")","v":" "}," ",null," ",null,{"$f":"IF($AH$26=\"x\",1,\" \")","v":" "},null,null,"  ",null,{"$f":"IF($AH$33=\"x\",1,\" \")","v":" "},null,null,null,null,null,null,null,9]
["Følehorn  gule/rødgule?",null,null,null,null,null,null,null,null,null,null,null,null,2,"albitarsis",null,null,null,null,null,13,"grossa",null,null,null,null,24,"rufimana ",null,null,null,null,null,{"$f":"IF(AI15,\"x\",\" \")","v":" "},0,null,null,0,"carbonaria",null,null,null,null,null,null,null,{"$f":"IF(($J$7>=O$4)*AND($J$7<=AB$4),1,\" \")","v":" "}," "," ",{"$f":"IF($AH$11=\"x\",1,\" \")","v":" "},null,null,null,{"$f":"IF($AH$16=\"x\",1,\" \")","v":" "},{"$f":"IF($AH$18=\"x\",1,\" \")","v":" "},null," ",null,null,null,null,{"$f":"IF($AH$27=\"x\",1,\" \")","v":" "},null,"  ",{"$f":"IF($AH$32=\"x\",1,\" \")","v":" "},null,null,null,null,null,null,null,null,10]
["Følehorn rødbrunlige?",null,null,null,null,null,null,null,null,null,null,null,null,3,"antiqua",null,null,null,null,null,14,"illustrata",null,null,null,null,25,"scutellata",null,null,null,null," ",{"$f":"IF(AI16,\"x\",\" \")","v":" "},0,null,null,0,"chlorus",null,null,null,null,null,null,null,{"$f":"IF(($J$7>=K$4)*AND($J$7<=S$4),1,\" \")","v":" "}," "," ",{"$f":"IF($AH$11=\"x\",1,\" \")","v":" "}," "," ",{"$f":"IF($AH$15=\"x\",1,\" \")","v":" "}," "," ",{"$f":"IF($AH$19=\"x\",1,\" \")","v":" "}," ",null," ",null,{"$f":"IF($AH$26=\"x\",1,\" \")","v":" "},null,null,"  "," ",{"$f":"IF($AH$33=\"x\",1,\" \")","v":" "},null,null,null,null,null,null,null,11]
[" ",null,null,null,null,null,null,null," ",null," ",null,null,4,"bergenstammi",null,null,null,null,null,15,"impressa",null,null,null,null,26,"soror",null,null,null,null,null,null,null,null,null,0,"cynocephala",null,null,null,null,null,null,null,{"$f":"IF(($J$7>=P$4)*AND($J$7<=Z$4),1,\" \")","v":" "}," "," ",{"$f":"IF($AH$11=\"x\",1,\" \")","v":" "},null,{"$f":"IF($AH$14=\"x\",1,\" \")","v":" "},null,{"$f":"IF($AH$16=\"x\",1,\" \")","v":" "},{"$f":"IF($AH$18=\"x\",1,\" \")","v":" "},null," ",null," ",null,{"$f":"IF($AH$26=\"x\",1,\" \")","v":" "},{"$f":"IF($AH$27=\"x\",1,\" \")","v":" "},null,"  ",{"$f":"IF($AH$32=\"x\",1,\" \")","v":" "},null,null,null,null,null,null,null,null,12]
["Scutellum med børster?",null,null,null,null,null,null,null," ",null,null,null,null,5,"canicularis",null,null,null,null,null,16,"lasiopa  ",null,null,null,null,27,"urbana",null,null,null,null,null,{"$f":"IF(AI18,\"x\",\" \")","v":" "},0,null,null,0,"flavipes",null,null,null,null,null,null,null,{"$f":"IF(($J$7>=M$4)*AND($J$7<=Q$4),1,\" \")","v":" "}," "," ",{"$f":"IF(($AH$8=\"x\")*AND($AH$11=\"x\"),1,\" \")","v":" "},{"$f":"IF(($AH$9=\"x\")*AND($AH$12=\"x\"),1,\" \")","v":" "},null,{"$f":"IF($AH$15=\"x\",1,\" \")","v":" "},null,null,{"$f":"IF($AH$19=\"x\",1,\" \")","v":" "}," ",{"$f":"IF(($AH$9=\"x\")*AND($AH$22=\"x\"),1,\" \")","v":" "}," ",{"$f":"IF($AH$25=\"x\",1,\" \")","v":" "},null,null,null,"  "," ",{"$f":"IF($AH$33=\"x\",1,\" \")","v":" "},null,null,null,null,null,null,null,13]
["Scutellum uden børster?",null,null,null,null,null,null,null,null,null,null,null,null,6,"carbonaria",null,null,null,null,null,17,"latifrons",null,null,null,null,28,"uviformis",null,null,null,null,null,{"$f":"IF(AI19,\"x\",\" \")","v":" "},0,null,null,0,"fraterna",null,null,null,null,null,null,null,{"$f":"IF(($J$7>=N$4)*AND($J$7<=S$4),1,\" \")","v":" "}," "," ",{"$f":"IF($AH$11=\"x\",1,\" \")","v":" "},{"$f":"IF($AH$12=\"x\",1,\" \")","v":" "},null,{"$f":"IF($AH$15=\"x\",1,\" \")","v":" "},null,{"$f":"IF($AH$18=\"x\",1,\" \")","v":" "},{"$f":"IF($AH$19=\"x\",1,\" \")","v":" "}," ",null," ",{"$f":"IF($AH$25=\"x\",1,\" \")","v":" "},{"$f":"IF($AH$26=\"x\",1,\" \")","v":" "},null,null,"  "," ",{"$f":"IF($AH$33=\"x\",1,\" \")","v":" "},null,null,null,null,null,null,null,14]
[null,null,null,null,null,null,null,null,null,null," ",null,null,7,"chlorus",null,null,null,null,null,18,"longula",null,null,null,null,29,"variabilis",null,null,null,null,null,null,null,null,null,0,"frontalis",null,null,null,null,null,null,null,{"$f":"IF(($J$7>=L$4)*AND($J$7<=S$4),1,\" \")","v":" "}," "," "," "," "," ",{"$f":"IF($AH$15=\"x\",1,\" \")","v":" "},{"$f":"IF($AH$16=\"x\",1,\" \")","v":" "},{"$f":"IF($AH$18=\"x\",1,\" \")","v":" "}," "," "," "," ",null,{"$f":"IF($AH$26=\"x\",1,\" \")","v":" "},{"$f":"IF($AH$27=\"x\",1,\" \")","v":" "},{"$f":"IF($AH$29=\"x\",1,\"  \")","v":"  "},null," ",{"$f":"IF($AH$33=\"x\",1,\" \")","v":" "},null,null,null,null,null,null,null,15]
["Lår sorte, evt. med gul spids?",null,null,null,null,null,null,null,null,null,null,null,null,8,"cynocephala",null,null,null,null,null,19,"mutabilis",null,null,null,null,30,"velutina",null,null,null,null,null,{"$f":"IF(AI21,\"x\",\" \")","v":" "},0,null,null,0,"gigantea",null,null," ",null,null,null,null,{"$f":"IF(($J$7>=N$4)*AND($J$7<=T$4),1,\" \")","v":" "}," "," "," ",null,{"$f":"IF($AH$14=\"x\",1,\" \")","v":" "},null,null,{"$f":"IF($AH$18=\"x\",1,\" \")","v":" "},null," ",null," ",null,null,{"$f":"IF($AH$27=\"x\",1,\" \")","v":" "},"  ",null,null,{"$f":"IF($AH$33=\"x\",1,\" \")","v":" "},null,null,null,null,null,null,null,16]
["Lår gule, evt. med mørk basis?",null,null,null,null,null,null,null,null,null,null,null,null,9,"flavipes",null,null,null,null,null,20,"nigripes",null,null,null,null,31,"vernalis",null,null,null,null,null,{"$f":"IF(AI22,\"x\",\" \")","v":" "},0,null,null,0,"grossa",null,null,null,null,null,null,null,{"$f":"IF(($J$7>=H$4)*AND($J$7<=N$4),1,\" \")","v":" "}," "," "," "," ",{"$f":"IF($AH$14=\"x\",1,\" \")","v":" "}," "," "," ",{"$f":"IF($AH$19=\"x\",1,\" \")","v":" "}," "," "," ",{"$f":"IF($AH$25=\"x\",1,\" \")","v":" "},{"$f":"IF($AH$26=\"x\",1,\" \")","v":" "},null,"  ",{"$f":"IF($AH$30=\"x\",1,\"  \")","v":"  "}," ",{"$f":"IF($AH$33=\"x\",1,\" \")","v":" "},null,null,null,null,null,null,null,17]
[null,null,null,null,null,null,null,null,null,null," ",null,null,10,"fraterna",null,null,null,null,null,21,"pagana",null,null,null,null,32,"vicina",null,null,null,null,null,null,null,"x",null,0,"illustrata",null,null,null,null,null,null,null,{"$f":"IF(($J$7>=R$4)*AND($J$7<=Z$4),1,\" \")","v":" "}," "," "," ",null,{"$f":"IF($AH$14=\"x\",1,\" \")","v":" "},null,null,null,{"$f":"IF($AH$19=\"x\",1,\" \")","v":" "}," ",null,{"$f":"IF($AH$24=\"x\",1,\" \")","v":" "},null,null,null,"  ",{"$f":"IF($AH$30=\"x\",1,\"  \")","v":"  "},{"$f":"IF($AH$32=\"x\",1,\" \")","v":" "},null,null,null,null,null,null,null,null,18]
["Skinneben helt sorte?",null,null,null,null,null,null,null,null,null,null,null,null,11,"frontalis",null,null,null,null,null,22,"proxima",null,null,null,null,33,"vulpina",null,null,null,null,null,{"$f":"IF(AI24,\"x\",\" \")","v":" "},0,null,null,0,"impressa",null,null,null,null,null,null,null,{"$f":"IF(($J$7>=O$4)*AND($J$7<=AA$4),1,\" \")","v":" "}," "," "," ",null,{"$f":"IF($AH$14=\"x\",1,\" \")","v":" "},null,{"$f":"IF($AH$16=\"x\",1,\" \")","v":" "},{"$f":"IF($AH$18=\"x\",1,\" \")","v":" "},null," ",null,{"$f":"IF($AH$24=\"x\",1,\" \")","v":" "},null,null,null,"  ",null,null,{"$f":"IF($AH$33=\"x\",1,\" \")","v":" "},null,null,null,null,null,null,null,19]
["Skinneben helt gule?",null,null,null,null,null,null,null,null,null,null,null,null,null,null,null,null,null,null,null," ",null,null,null,null,null,null,null,null,null,null,null,null,{"$f":"IF(AI25,\"x\",\" \")","v":" "},0,null,null,0,"lasiopa  ",null,null,null,null,null,null,null,{"$f":"IF(($J$7>=N$4)*AND($J$7<=S$4),1,\" \")","v":" "}," "," "," ",null,{"$f":"IF($AH$14=\"x\",1,\" \")","v":" "},null,{"$f":"IF($AH$16=\"x\",1,\" \")","v":" "},{"$f":"IF($AH$18=\"x\",1,\" \")","v":" "},null," ",null," ",null,{"$f":"IF($AH$26=\"x\",1,\" \")","v":" "},{"$f":"IF($AH$27=\"x\",1,\" \")","v":" "},"  ",null," ",{"$f":"IF($AH$33=\"x\",1,\" \")","v":" "},null,null,null,null,null,null,null,20]
["Skinneben overvejende gule?",null,null,null,null,null,null,null,null,null,null,null,"Art  nr.",null,{"$f":"BS6","v":1},{"$f":"IF(O25= \" \",\" \",\"   Cheilosia\")","v":"   Cheilosia"},null,null,null,{"$f":"VLOOKUP(O26,AI50:AJ82,2)","v":"albipila"},null,null,null,null,null,null,null,null,null,null,null,null,null,{"$f":"IF(AI26,\"x\",\" \")","v":" "},0,null,null,0,"latifrons",null,null,null,null,null,null,null,{"$f":"IF(($J$7>=O$4)*AND($J$7<=Z$4),1,\" \")","v":" "}," "," "," ",{"$f":"IF(($AH$9=\"x\")*AND($AH$12=\"x\"),1,\" \")","v":" "},null,{"$f":"IF($AH$15=\"x\",1,\" \")","v":" "},{"$f":"IF($AH$16=\"x\",1,\" \")","v":" "},null,{"$f":"IF($AH$19=\"x\",1,\" \")","v":" "}," ",null," ",null,{"$f":"IF($AH$26=\"x\",1,\" \")","v":" "},null,"  ",null,null,{"$f":"IF($AH$33=\"x\",1,\" \")","v":" "},null,null,null,null,null,null,null,21]
["Skinneben overvejende mørke ?",null,null,null,null,null,null,null,null,null,null,null,{"$f":"VLOOKUP(O26,AK50:AN82,2)","v":"Følehorn gult, lidt længere end bredt (han) eller cirkelrundt (hun). Ansigt  "},null,null,null,null,null,null,null,null,null,null,null,null,null,null,null,null,null,null,null,null,{"$f":"IF(AI27,\"x\",\" \")","v":" "},0,null,null,0,"longula",null,null,null,null,null,null,null,{"$f":"IF(($J$7>=U$4)*AND($J$7<=AB$4),1,\" \")","v":" "}," "," ",null,{"$f":"IF($AH$12=\"x\",1,\" \")","v":" "},{"$f":"IF($AH$14=\"x\",1,\" \")","v":" "},null,{"$f":"IF($AH$16=\"x\",1,\" \")","v":" "},{"$f":"IF($AH$18=\"x\",1,\" \")","v":" "},null," ",null," ",null,null,{"$f":"IF($AH$27=\"x\",1,\" \")","v":" "},null,{"$f":"IF($AH$30=\"x\",1,\"  \")","v":"  "},null,{"$f":"IF($AH$33=\"x\",1,\" \")","v":" "},null,null,null,null,null,null,null,22]
[null,null,null,null,null,null,null,null,null,null," ",null,{"$f":"VLOOKUP(O26,AK85:AN117,2)","v":"noget udhulet under følehornene. Øjnene langt lyst behårede. Scutellum"},null,null,null,null,null,null,null,null,null,null,null,null,null,null,null,null,null,null,null,null,null,null,null,null,0,"mutabilis",null,null,null,null,null,null,null,{"$f":"IF(($J$7>=Q$4)*AND($J$7<=Y$4),1,\" \")","v":" "}," "," ",{"$f":"IF(($AH$8=\"x\")*AND($AH$11=\"x\"),1,\" \")","v":" "},{"$f":"IF(($AH$9=\"x\")*AND($AH$12=\"x\"),1,\" \")","v":" "},{"$f":"IF($AH$14=\"x\",1,\" \")","v":" "},null,null," ",null," ",null," ",null,null,{"$f":"IF($AH$27=\"x\",1,\" \")","v":" "},null,{"$f":"IF($AH$30=\"x\",1,\"  \")","v":"  "},null,{"$f":"IF($AH$33=\"x\",1,\" \")","v":" "},null,null,null,null,null,null,null,23]
["Fødder inkl. forfod  mørke?",null,null,null,null,null,null,null,null,null,null,null,{"$f":"VLOOKUP(O26,AK120:AN152,2)","v":"uden børster, men med lange lyse hår. Kroppen med lang lys behåring."},null,null,null,null,null,null,null,null,null,null,null,null,null,null,null,null,null,null,null,null,{"$f":"IF(AI29,\"x\",\" \")","v":" "},0,null,null,0,"nigripes",null,null,null,null,null,null,null,{"$f":"IF(($J$7>=N$4)*AND($J$7<=T$4),1,\" \")","v":" "}," "," ",null,{"$f":"IF($AH$12=\"x\",1,\" \")","v":" "},{"$f":"IF($AH$14=\"x\",1,\" \")","v":" "},null,null," ",null," ",null,{"$f":"IF($AH$24=\"x\",1,\" \")","v":" "},null,null,null,{"$f":"IF($AH$29=\"x\",1,\"  \")","v":"  "},null,{"$f":"IF($AH$32=\"x\",1,\" \")","v":" "},null,null,null,null,null,null,null,null,24]
["Fødder mere el. mindre gule?",null,null,null,null,null,null,null,null,null,null,null,{"$f":"VLOOKUP(O26,AK154:AN186,2)","v":"Undersiden noget bestøvet. Hannens lår sorte, hunnens gule. Skinneben"},null,null,null,null,null,null,null,null,null,null,null,null,null,null,null,null,null,null,null,null,{"$f":"IF(AI30,\"x\",\" \")","v":" "},0,null,null,0,"pagana",null,null,null,null,null,null,null,{"$f":"IF(($J$7>=J$4)*AND($J$7<=AA$4),1,\" \")","v":" "}," "," "," ",{"$f":"IF($AH$12=\"x\",1,\" \")","v":" "}," ",{"$f":"IF($AH$15=\"x\",1,\" \")","v":" "}," "," "," "," "," "," ",null,{"$f":"IF($AH$26=\"x\",1,\" \")","v":" "},null,null,{"$f":"IF($AH$30=\"x\",1,\"  \")","v":"  "}," ",{"$f":"IF($AH$33=\"x\",1,\" \")","v":" "}]
[null,null,null,null,null,null,null,null,null,null," ",null,{"$f":"VLOOKUP(O26,AK188:AN220,2)","v":"hos begge køn gule. Fødder overvejende gule. Vinger klare. 9-11 mm."},null,null,null,null,null,null,null,null,null,null,null,null,null,null,null,null,null,null,null,null,null,null,null,null,0,"proxima",null,null,null,null,null,null,null,{"$f":"IF(($J$7>=O$4)*AND($J$7<=Z$4),1,\" \")","v":" "}," "," ",{"$f":"IF($AH$11=\"x\",1,\" \")","v":" "},null,{"$f":"IF($AH$14=\"x\",1,\" \")","v":" "},null,null," ",null," ",null," ",null,null,{"$f":"IF($AH$27=\"x\",1,\" \")","v":" "},{"$f":"IF($AH$29=\"x\",1,\"  \")","v":"  "},{"$f":"IF($AH$30=\"x\",1,\"  \")","v":"  "},null," "]
["Vinger mørke eller med plet?",null,null,null,null,null,null,null,null,null,null,null,{"$f":"VLOOKUP(O26,AK222:AL254,2)","v":"Ret alm. forårsart 10.III-20:V.  Den mindre, meget sjældne  C. nebulosa"},null,null,null,null,null,null,null,null,null,null,null,null,null,null,null,null,null,null,null,null,{"$f":"IF(AI32,\"x\",\" \")","v":" "},0,null,null,0,"pubera",null,null,null,null,null,null,null,{"$f":"IF(($J$7>=M$4)*AND($J$7<=Q$4),1,\" \")","v":" "}," "," "," ",{"$f":"IF($AH$12=\"x\",1,\" \")","v":" "},{"$f":"IF($AH$14=\"x\",1,\" \")","v":" "}," ",{"$f":"IF($AH$16=\"x\",1,\" \")","v":" "}," "," "," "," ",{"$f":"IF($AH$24=\"x\",1,\" \")","v":" "},null,null,null,{"$f":"IF($AH$29=\"x\",1,\"  \")","v":"  "},null," "," "]
["Vinger klare, evt. gul basis?",null,null,null,null,null,null,null,null,null,null,null,{"$f":"VLOOKUP(O26,AK256:AL288,2)","v":"ligner og er vanskelig at bestemme. Se litteraturen."},null,null,null,null,null,null,null,null,null,null,null,null,null,null,null,null,null,null,null,null,{"$f":"IF(AI33,\"x\",\" \")","v":" "},0,null,null,0,"rufimana ",null,null,null,null,null,null,null,{"$f":"IF(($J$7>=M$4)*AND($J$7<=R$4),1,\" \")","v":" "}," "," ",{"$f":"IF($AH$11=\"x\",1,\" \")","v":" "},null,null,{"$f":"IF($AH$15=\"x\",1,\" \")","v":" "},null," ",null," ",null," ",null,null,{"$f":"IF($AH$27=\"x\",1,\" \")","v":" "},{"$f":"IF($AH$29=\"x\",1,\"  \")","v":"  "},{"$f":"IF($AH$30=\"x\",1,\"  \")","v":"  "}," "," "]
[null,null,null," ",null,null,null,null,null,null," ",null,{"$f":"IF(U41>1,U41,\" \")","v":" "},{"$f":"IF(U41>1,\"arter.\",\" \")","v":" "},null,null,null,null,null,"Urtesvirrefluer Version 1. Bent Haagen Petersen",null,null,null,null,null,null,null,null,null,null,null,null,null,null,null,null,null,0,"scutellata",null,null,null,null,null,null,null,{"$f":"IF(($J$7>=S$4)*AND($J$7<=AA$4),1,\" \")","v":" "}," "," ",null,{"$f":"IF($AH$12=\"x\",1,\" \")","v":" "},{"$f":"IF($AH$14=\"x\",1,\" \")","v":" "},{"$f":"IF($AH$15=\"x\",1,\" \")","v":" "},{"$f":"IF($AH$16=\"x\",1,\" \")","v":" "}," ",null," ",null," ",null,{"$f":"IF($AH$26=\"x\",1,\" \")","v":" "},null,null,{"$f":"IF($AH$30=\"x\",1,\"  \")","v":"  "},null," "]
[null,{"$f":"IF(U41>1,\"Der kan være tale om\",\" \")","v":" "},null,null,null,null,null,null,null,null,null," ",null,null,null,null,null,null,null,null,null,null,null,null,null,null,null,null,null,null,null,null,null,null,null,null,null,0,"soror",null,null,null,null,null,null,null,{"$f":"IF(($J$7>=Q$4)*AND($J$7<=Y$4),1,\" \")","v":" "}," "," ",null,{"$f":"IF($AH$12=\"x\",1,\" \")","v":" "},null,{"$f":"IF($AH$15=\"x\",1,\" \")","v":" "},null," ",null," ",null," ",{"$f":"IF($AH$25=\"x\",1,\" \")","v":" "},{"$f":"IF($AH$26=\"x\",1,\" \")","v":" "},null,null,{"$f":"IF($AH$30=\"x\",1,\"  \")","v":"  "},null," "]
[null,null,null," ",null,null,null,null,null,null," ",null,{"$f":"IF(U43>1,U43,\" \")","v":" "},null,null,null,null,null,null,null,null,null,null,null,null,null,null,null,null,null,null,null,null,null,null,null,null,0,"urbana",null,null,null,null,null,null,null,{"$f":"IF(($J$7>=L$4)*AND($J$7<=Q$4),1,\" \")","v":" "}," "," ",{"$f":"IF($AH$11=\"x\",1,\" \")","v":" "}," ",{"$f":"IF($AH$14=\"x\",1,\" \")","v":" "},{"$f":"IF($AH$15=\"x\",1,\" \")","v":" "},{"$f":"IF($AH$16=\"x\",1,\" \")","v":" "}," ",null," ",null," ",{"$f":"IF($AH$25=\"x\",1,\" \")","v":" "},{"$f":"IF($AH$26=\"x\",1,\" \")","v":" "},null,null,{"$f":"IF($AH$30=\"x\",1,\"  \")","v":"  "}," "," "]
[null,{"$f":"IF(U43>1,\"Der kan være tale om\",\" \")","v":" "},null,null,null,null,null," ",null,null,null," ",null,null,null,null,null,null,null,null,null,null,null,null,null,null,null,null,null,null,null,null,null,null,null,null,null,0,"uviformis",null,null,null,null,null,null,null,{"$f":"IF(($J$7>=O$4)*AND($J$7<=P$4),1,\" \")","v":" "}," "," ",{"$f":"IF(($AH$8=\"x\")*AND($AH$11=\"x\"),1,\" \")","v":" "},{"$f":"IF(($AH$9=\"x\")*AND($AH$12=\"x\"),1,\" \")","v":" "},null,{"$f":"IF($AH$15=\"x\",1,\" \")","v":" "},null," ",null," ",null," ",{"$f":"IF($AH$25=\"x\",1,\" \")","v":" "},{"$f":"IF($AH$26=\"x\",1,\" \")","v":" "},null,null,{"$f":"IF($AH$30=\"x\",1,\"  \")","v":"  "}," "," "]
[null,null,null,null,null,null,null,null,null,null,null,null,null,null,null,null,null,null,null,null,null,null,null,null,null,null,null,null,null,null,null,null,null,null,null,null,null,0,"variabilis",null,null,null,null,null,null,null,{"$f":"IF(($J$7>=N$4)*AND($J$7<=V$4),1,\" \")","v":" "}," "," ",{"$f":"IF($AH$11=\"x\",1,\" \")","v":" "},null,{"$f":"IF($AH$14=\"x\",1,\" \")","v":" "},null,null," ",null," ",null,{"$f":"IF($AH$24=\"x\",1,\" \")","v":" "},null,null,{"$f":"IF($AH$27=\"x\",1,\" \")","v":" "},{"$f":"IF($AH$29=\"x\",1,\"  \")","v":"  "},null,{"$f":"IF($AH$32=\"x\",1,\" \")","v":" "}]
[null,null,null,null,null,null,null,null,null,null,null,null,null,null,null,null,null,null,null,null,null,null,null,null,null,null,null,null,null,null,null,null,null,null,null,null,null,0,"velutina",null,null,null,null,null,null,null,{"$f":"IF(($J$7>=S$4)*AND($J$7<=Y$4),1,\" \")","v":" "}," "," ",{"$f":"IF($AH$11=\"x\",1,\" \")","v":" "},null,null,{"$f":"IF($AH$15=\"x\",1,\" \")","v":" "},{"$f":"IF($AH$16=\"x\",1,\" \")","v":" "}," ",null," ",null," ",null,{"$f":"IF($AH$26=\"x\",1,\" \")","v":" "},null,null,{"$f":"IF($AH$30=\"x\",1,\"  \")","v":"  "},null,{"$f":"IF($AH$33=\"x\",1,\" \")","v":" "}]
[null,null,null,null,null,null,null,null,null,null,null,null,null,null,null,null,null,null,null,null,null,null,null,null,null,null,null,null,null,null,null,null,null,null,null,null,null,0,"vernalis",null,null,null,null,null,null,null,{"$f":"IF(($J$7>=L$4)*AND($J$7<=AE$4),1,\" \")","v":" "}," "," ",{"$f":"IF($AH$11=\"x\",1,\" \")","v":" "}," ",{"$f":"IF($AH$14=\"x\",1,\" \")","v":" "},{"$f":"IF($AH$15=\"x\",1,\" \")","v":" "},{"$f":"IF($AH$16=\"x\",1,\" \")","v":" "}," "," "," "," "," ",null,{"$f":"IF($AH$26=\"x\",1,\" \")","v":" "},null,null,{"$f":"IF($AH$30=\"x\",1,\"  \")","v":"  "}," ",{"$f":"IF($AH$33=\"x\",1,\" \")","v":" "}]
[null,null,null,null,null,null,null,null,null,null,null,null,null,null,null,null,null,null,null,null,null,null,null,null,null,null,null,null,null,null,null,null,null,null,null,null,null,0,"vicina",null,null,null,null,null,null,null,{"$f":"IF(($J$7>=P$4)*AND($J$7<=W$4),1,\" \")","v":" "}," "," ",null,{"$f":"IF($AH$12=\"x\",1,\" \")","v":" "},{"$f":"IF($AH$14=\"x\",1,\" \")","v":" "},null,null," ",null," ",null,{"$f":"IF($AH$24=\"x\",1,\" \")","v":" "},null,null,null,{"$f":"IF($AH$29=\"x\",1,\"  \")","v":"  "},null,null,{"$f":"IF($AH$33=\"x\",1,\" \")","v":" "}]
[null,null,null,null,null,null,null,null,null,null,null,null,null,null,null,null,null,null,null,null,null,null,null,null,null,null,null,null,null,null,null,null,null,null,null,null,null,0,"vulpina",null,null,null,null,null,null,null,{"$f":"IF(($J$7>=O$4)*AND($J$7<=Y$4),1,\" \")","v":" "}," "," ",{"$f":"IF($AH$11=\"x\",1,\" \")","v":" "},null,{"$f":"IF($AH$14=\"x\",1,\" \")","v":" "},null,{"$f":"IF($AH$16=\"x\",1,\" \")","v":" "}," ",null," ",null,null,null,null,{"$f":"IF($AH$27=\"x\",1,\" \")","v":" "},{"$f":"IF($AH$29=\"x\",1,\"  \")","v":"  "},null,null,{"$f":"IF($AH$33=\"x\",1,\" \")","v":" "}]
[null,null,null,null,null,null,null,null,null,null,null,null,null,null,null,null,null,null,null,null,null,null,null,null,null,null,null,null,null,null,null,null,null,null,null,null,null,null,null,null,null,null,null,null,null,null,"T","M","F","  Hår",null," ","Føl"," ","Scut",null,"Lår",null,null,"Skben",null,null,"  Fdr.",null,"Vi","ng"]
[null,null,null,null,null,null,null,null,null,null,null,null,null,null,null,null,null,null,null,null,null,null,null,null,null,null,null,null,null,null,null,null,null,null,null,null,null,null,null,null,null,null,null,null,null,null,null,null,null,"m","u","s","g","rb","m","u","s","g","s","g","ri","gs","s","dg","m","l"," "]
[]
[]
[]
[null,null,null,null,null,null,null,null,null,null,null,null,null,null,null,null,null,null,null,null,null,null,null,null,null,null,null,null,null,null,null,null," "]
[null,null,null,null,null,null,null,null,null,null,null,null,null,null,null,null,null,null,null,null,null,null,null,null,null,null,null," "]
[null,null,null,null,null,null,null,null,null,null,null,null,null,null,null,null,null,null,null,null,null,null,null,null,null,null,null,null,null,null,null,null," ",1,1,"albipila",1,"Følehorn gult, lidt længere end bredt (han) eller cirkelrundt (hun). Ansigt  ",null,null,null,null,null,null,null,null,null,null,null,null,null,null,null,null,null,null,null,null,null,null,null,null,null,{"$f":"SUM(AU10:BN10)","v":0},"Hvidhåret Urtesvirreflue"]
[null,null,null,null,null,null,null,null,null,null,null,null,null,null,null,null,null,null,null,null,null,null,null,null,null,null,null,null,null,null,null,null,null," ",2,"albitarsis",2,"Følehorn mørke, ikke længere end brede. Ansigt udhulet under følehorn,",null,null,null,null,null,null,null,null,null,null,null,null,null,null,null,null,null,null,null,null,null,null,null,null,null,{"$f":"SUM(AU11:BU11)","v":0},"Hvidfodet Urtesvirreflue"]
[null,null,null,null,null,null,null,null,null,null,null,null,null,null,null,null,null,null,null,null,null,null,null,null,null,null,null,null,null,null,null,null,null," ",3,"antiqua",3,"Følehorn sorte, ret små, ikke længere end brede. Ansigtet udhulet under ",null,null,null,null,null,null,null,null,null,null,null,null,null,null,null,null,null,null,null,null,null,null,null,null,null,{"$f":"SUM(AU12:BU12)","v":0},"Kodriver-Urtesvirreflue"]
[null,null,null,null,null,null,null,null,null,null,null,null,null,null,null,null,null,null,null,null,null,null,null,null,null,null,null,null,null,null,null,null,null," ",4,"bergenstammi",4,"Følehorn gule og runde. Ansigt svagt udhulet. Underansigtet  kraftigt",null,null,null,null,null,null,null,null,null,null,null,null,null,null,null,null,null,null,null,null,null,null,null,null,null,0,"Brandbæger-Urtesvirreflue"]
[null,null,null,null,null,null,null,null,null,null,null,null,null,null,null,null,null,null,null,null,null,null,null,null,null,null,null,null,null,null,null,null,null,null,5,"canicularis",5,"Følehorn brune, runde. Ansigt svagt udhulet under følehornene.  Panden",null,null,null,null,null,null,null,null,null,null,null,null,null,null,null,null,null,null,null,null,null,null,null,null,null,0," Hestehov-Urtesvirreflue"]
[null,null,null,null,null,null,null,null,null,null,null,null,null,null,null,null,null,null,null,null,null,null,null,null,null,null,null,null,null,null,null,null,null,null,6,"carbonaria",6,"Følehorn små, gulbrune. Ansigt udhulet og skinnende, kraftigt fremskudt,",null,null,null,null,null,null,null,null,null,null,null,null,null,null,null,null,null,null,null,null,null,null,null,null,null,0,"Mørkvinget Urtesvirreflue"]
[null,null,null,null,null,null,null,null,null,null,null,null,null,null,null,null,null,null,null,null,null,null,null,null,null,null,null,null,null,null,null,null,null,null,7,"chlorus",7,"Følehorn gule, ret små. Ansigtet svagt udhulet under følehornene. Pande",null,null,null,null,null,null,null,null,null,null,null,null,null,null,null,null,null,null,null,null,null,null,null,null,null,0,"   Grøn Urtesvirreflue"]
[null,null,null,null,null,null,null,null,null,null,null,null,null,null,null,null,null,null,null,null,null,null,null,null,null,null,null,null,null,null,null,null,null,null,8,"cynocephala",8,"Følehorn brune, runde. Ansigt skinnende, kraftigt udhulet og fremskudt,",null,null,null,null,null,null,null,null,null,null,null,null,null,null,null,null,null,null,null,null,null,null,null,null,null,0,"Hundehoved-Urtesvirreflue"]
[null,null,null,null,null,null,null,null,null,null,null,null,null,null,null,null,null,null,null,null,null,null,null,null,null,null,null,null,null,null,null,null,null,null,9,"flavipes",9,"Følehorn gule. Ansigt svagt udhulet under følehornene.Øjne behårede",null,null,null,null,null,null,null,null,null,null,null,null,null,null,null,null,null,null,null,null,null,null,null,null,null,0,"Gulbenet Urtesvirreflue"]
[null,null,null,null,null,null,null,null,null,null,null,null,null,null,null,null,null,null,null,null,null,null,null,null,null,null,null,null,null,null,null,null,null,null,10,"fraterna",10,"Følehorn gule/rødbrune, små og runde. Ansigt udhulet. Pande bestøvet langs",null,null,null,null,null,null,null,null,null,null,null,null,null,null,null,null,null,null,null,null,null,null,null,null,null,0,"Kabbeleje-Urtesvirreflue"]
[null,null,null,null,null,null,null,null,null,null,null,null,null,null,null,null,null,null,null,null,null,null,null,null,null,null,null,null,null,null,null,null,null," ",11,"frontalis",11,"Følehorn rødgule/brunlige. Ansigt med fremadrettede hår, svagt udhulet. Han-",null,null,null,null,null,null,null,null,null,null,null,null,null,null,null,null,null,null,null,null,null,null,null,null,null,0,"   Sump-Urtesvirreflue"]
[null,null,null,null,null,null,null,null,null,null,null,null,null,null,null,null,null,null,null,null,null,null,null,null,null,null,null,null,null,null,null,null,null,null,12,"gigantea",12,"Følehorn brune, lidt firkantet-runde. Ansigt kraftigt udhulet under følehorn.",null,null,null,null,null,null,null,null,null,null,null,null,null,null,null,null,null,null,null,null,null,null,null,null,null,0,"   Stor Urtesvirreflue"]
[null,null,null,null,null,null,null,null,null,null,null,null,null,null,null,null,null,null,null,null,null,null,null,null,null,null,null,null,null,null,null,null,null,null,13,"grossa",13,"Følehorn mørke. Ansigt skinnende, udhulet under antennerne. Øjne med",null,null,null,null,null,null,null,null,null,null,null,null,null,null,null,null,null,null,null,null,null,null,null,null,null,0,"Ræverød Urtesvirreflue"]
[null,null,null,null,null,3,null,null,null,null,null,null,null,null,null,null,null,null,null,null,null,null,null,null,null,null,null,null,null,null,null,null,null,null,14,"illustrata",14,"Følehorn sorte, cirkelrunde. Ansigt udhulet under følehorn. Ansigt og kinder",null,null,null,null,null,null,null,null,null,null,null,null,null,null,null,null,null,null,null,null,null,null,null,null,null,0," Broget Urtesvirreflue"]
[null,null,null,null,null,null,null,null,null,null,null,null,null,null,null,null,null,null,null,null,null,null,null,null,null,null,null,null,null,null,null,null,null,null,15,"impressa",15,"Følehorn rødbrune, længere end brede, rektangulære. Ansigt udhulet under",null,null,null,null,null,null,null,null,null,null,null,null,null,null,null,null,null,null,null,null,null,null,null,null,null,0,"Gulvinget Urtesvirreflue"]
[null,null,null,null,null,null,null,null,null,null,null,null,null,null,null,null,null,null,null,null,null,null,null,null,null,null,null,null,null,null,null,null,null,null,16,"lasiopa   (=honesta)",16,"Følehorn mørke, runde. Ansigt med udstående hår, udhulet under føle-",null,null,null,null,null,null,null,null,null,null,null,null,null,null,null,null,null,null,null,null,null,null,null,null,null,0,"Vejbred-Urtesvirreflue"]
[null,null,null,null,null,null,null,null,null,null,null,null,null,null,null,null,null,null,null,null,null,null,null,null,null,null,null,null,null,null,null,null,null,null,17,"latifrons  (=intonsa)",17,"Følehorn rødgule/rødbrune. Ansigt med udstående lyse hår, kun svagt",null,null,null,null,null,null,null,null,null,null,null,null,null,null,null,null,null,null,null,null,null,null,null,null,null,0,"Bredkindet Urtesvirreflue"]
[null,null,null,null,null,null,null,null,null,null,null,null,null,null,null,null,null,null,null,null,null,null,null,null,null,null,null,null,null,null,null,null,null,null,18,"longula",18,"Følehorn ret mørke. Ansigt ret fladt med tilspidset ansigtsknop, ofte med",null,null,null,null,null,null,null,null,null,null,null,null,null,null,null,null,null,null,null,null,null,null,null,null,null,0,"   Lang Urtesvirreflue"]
[null,null,null,null,null,null,null,null,null,null,null,null,null,null,null,null,null,null,null,null,null,null,null,null,null,null,null,null,null,null,null,null,null,null,19,"mutabilis",19,"Følehorn små, mørke, længere end brede. Ansigt noget bestøvet, lidt udhu-",null,null,null,null,null,null,null,null,null,null,null,null,null,null,null,null,null,null,null,null,null,null,null,null,null,0,"Foranderlig Urtesvirreflue"]
[null,null,null,null,null,null,null,null,null,null,null,null,null,null,null,null,null,null,null,null,null,null,null,null,null,null,null,null,null,null,null,null,null,null,20,"nigripes",20,"Følehorn sorte, ret små og runde. Ansigtet udhulet under følehornene.",null,null,null,null,null,null,null,null,null,null,null,null,null,null,null,null,null,null,null,null,null,null,null,null,null,0,"Sortfodet Urtesvirreflue"]
[null,null,null,null,null,null,null,null,null,null,null,null,null,null,null,null,null,null,null,null,null,null,null,null,null,null,null,null,null,null,null,null,null,null,21,"pagana",21,"Følehorn gule, hunnens meget store. Ansigt svagt udhulet under følehornene.",null,null,null,null,null,null,null,null,null,null,null,null,null,null,null,null,null,null,null,null,null,null,null,null,null,0," Kørvel-Urtesvirreflue"]
[null,null,null,null,null,null,null,null,null,null,null,null,null,null,null,null,null,null,null,null,null,null,null,null,null,null,null,null,null,null,null,null,null,null,22,"proxima",22,"Følehorn mørke, næppe længere end brede. Ansigt kraftigt udhulet ",null,null,null,null,null,null,null,null,null,null,null,null,null,null,null,null,null,null,null,null,null,null,null,null,null,0," Tidsel-Urtesvirreflue"]
[null,null,null,null,null,null,null,null,null,null,null,null,null,null,null,null,null,null,null,null,null,null,null,null,null,null,null,null,null,null,null,null,null,null,23,"pubera",23,"Følehorn sortbrune, ofte ret små og korte. Ansigt kraftigt udhulet. Pande  ",null,null,null,null,null,null,null,null,null,null,null,null,null,null,null,null,null,null,null,null,null,null,null,null,null,0,"  Dunet Urtesvirreflue"]
[null,null,null,null,null,null,null,null,null,null,null,null,null,null,null,null,null,null,null,null,null,null,null,null,null,null,null,null,null,null,null,null,null,null,24,"rufimana ",24,"Følehorn små, rødgule, mørke overst. Ansigt udhulet under følehorn. Ansigt",null,null,null,null,null,null,null,null,null,null,null,null,null,null,null,null,null,null,null,null,null,null,null,null,null,0,"Rødfodet Urtesvirreflue"]
[null,null,null,null,null,null,null,null,null,null,null,null,null,null,null,null,null,null,null,null,null,null,null,null,null,null,null,null,null,null,null,null,null,null,25,"scutellata",25,"Følehorn noget brunlige. Ansigt med bred halvkugleformet ansigtsknop..",null,null,null,null,null,null,null,null,null,null,null,null,null,null,null,null,null,null,null,null,null,null,null,null,null,0,"Rørhat-Urtesvirreflue"]
[null,null,null,null,null,null,null,null,null,null,null,null,null,null,null,null,null,null,null,null,null,null,null,null,null,null,null,null,null,null,null,null,null,null,26,"soror",26,"Følehorn gule, hannens længere end brede. Ansigtet udhulet. Hannens ",null,null,null,null,null,null,null,null,null,null,null,null,null,null,null,null,null,null,null,null,null,null,null,null,null,0,"Trøffel-Urtesvirreflue"]
[null,null,null,null,null,null,null,null,null,null,null,null,null,null,null,null,null,null,null,null,null,null,null,null,null,null,null,null,null,null,null,null,null,null,27,"urbana  (=praecox)",27,"Følehorn længere end brede, fra sorte til gule. Ansigt udhulet under følehorn,",null,null,null,null,null,null,null,null,null,null,null,null,null,null,null,null,null,null,null,null,null,null,null,null,null,0,"Tidlig Urtesvirreflue"]
[null,null,null,null,null,null,null,null,null,null,null,null,null,null,null,null,null,null,null,null,null,null,null,null,null,null,null,null,null,null,null,null,null,null,28,"uviformis",28,"Følehorn rødgule, ofte lidt længee end brede. Ansigtet næsten fladt.",null,null,null,null,null,null,null,null,null,null,null,null,null,null,null,null,null,null,null,null,null,null,null,null,null,0,"Sølv-Urtesvirreflue"]
[null,null,null,null,null,null,null,null,null,null,null,null,null,null,null,null,null,null,null,null,null,null,null,null,null,null,null,null,null,null,null,null,null,null,29,"variabilis",29,"Følehorn mørke, næsten cirkelrunde. Ansigtet tydeligt udhulet, med udstå-",null,null,null,null,null,null,null,null,null,null,null,null,null,null,null,null,null,null,null,null,null,null,null,null,null,0,"   Sort Urtesvirreflue"]
[null,null,null,null,null,null,null,null,null,null,null,null,null,null,null,null,null,null,null,null,null,null,null,null,null,null,null,null,null,null,null,null,null,null,30,"velutina",30,"Følehorn rødgule/ brune. Ansigt svagt bestøvet, ret fladt. Pande ret skin-",null,null,null,null,null,null,null,null,null,null,null,null,null,null,null,null,null,null,null,null,null,null,null,null,null,0,"Gulerod-Urtesvirreflue"]
[null,null,null,null,null,null,null,null,null,null,null,null,null,null,null,null,null,null,null,null,null,null,null,null,null,null,null,null,null,null,null,null,null,null,31,"vernalis",31,"Følehorn cirkelrunde, rødlige/rødbrunlige. Ansigt kraftigt udhulet, skinnende.",null,null,null,null,null,null,null,null,null,null,null,null,null,null,null,null,null,null,null,null,null,null,null,null,null,0,"  Asters-Urtesvirreflue"]
[null,null,null,null,null,null,null,null,null,null,null,null,null,null,null,null,null,null,null,null,null,null,null,null,null,null,null,null,null,null,null,null,null,null,32,"vicina   (=nasutula)",32,"Følehorn sorte, hannens kvadratiske, hunnens runde. Ansigt udhulet. An-",null,null,null,null,null,null,null,null,null,null,null,null,null,null,null,null,null,null,null,null,null,null,null,null,null,0,"Næse-Urtesvirreflue"]
[null,null,null,null,null,null,null,null,null,null,null,null,null,null,null,null,null,null,null,null,null,null,null,null,null,null,null,null,null,null,null,null,null,null,33,"vulpina",33,"Følehorn mørke, hannens længere end brede. Hunnens cirkelrunde. An-",null,null,null,null,null,null,null,null,null,null,null,null,null,null,null,null,null,null,null,null,null,null,null,null,null,0,"Artiskok-Urtesvirreflue"]
[]
[null,null,null,null,null,null,null,null,null,null,null,null,null,null,null,null,null,null,null,null,null,null,null,null,null,null,null,null,null,null,null," "]
[null,null,null,null,null,null,null,null,null,null,null,null,null,null,null,null,null,null,null,null,null,null,null,null,null,null,null,null,null,null,null,null,null,2,1,"albipila",1,"noget udhulet under følehornene. Øjnene langt lyst behårede. Scutellum"]
[null,null,null,null,null,null,null,null,null,null,null,null,null,null,null,null,null,null,null,null,null,null,null,null,null,null,null,null,null,null,null,null,null,null,2,"albitarsis",2,"noget bestøvet. Panden skinnende. Øjne med lang lys behåring (han), uden"]
[null,null,null,null,null,null,null,null,null,null,null,null,null,null,null,null,null,null,null,null,null,null,null,null,null,null,null,null,null,null,null,null,null,null,3,"antiqua",3,"følehornene. Underansigtet kraftigt fremskudt og skinnende. Panden "]
[null,null,null,null,null,null,null,null,null,null,null,null,null,null,null,null,null,null,null,null,null,null,null,null,null,null,null,null,null,null,null,null,null,null,4,"bergenstammi",4,"fremskudt. Pande skinnende. Øjne med hår på den øverste del. Scutellum"]
[null,null,null,null,null,null,null,null,null,null,null,null,null,null,null,null,null,null,null,null,null,null,null,null,null,null,null,null,null,null,null,null,null,null,5,"canicularis",5,"skinnende. Øjnene langt brunligt behårede i øverste halvdel. Scutellum "]
[null,null,null,null,null,null,null,null,null,null,null,null,null,null,null,null,null,null,null,null,null,null,null,null,null,null,null,null,null,null,null,null,null,null,6,"carbonaria",6,"også nedefter. Øjne med mørke hår. Scutellum med sorte børster. Bryst"]
[null,null,null,null,null,null,null,null,null,null,null,null,null,null,null,null,null,null,null,null,null,null,null,null,null,null,null,null,null,null,null,null,null,null,7,"chlorus",7,"og ansigt skinnende. Øjne med mørke hår. Scutellum uden børster, men"]
[null,null,null,null,null,null,null,null,null,null,null,null,null,null,null,null,null,null,null,null,null,null,null,null,null,null,null,null,null,null,null,null,null,null,8,"cynocephala",8,"også skråt nedefter. Panden næsten skinnende. Øjne ganske kort brunt"]
[null,null,null,null,null,null,null,null,null,null,null,null,null,null,null,null,null,null,null,null,null,null,null,null,null,null,null,null,null,null," ",null,null,null,9,"flavipes",9,"øverst hos han, ubehårede hos hun. Scutellum uden børster, men hos "]
[null,null,null,null,null,null,null,null,null,null,null,null,null,null,null,null,null,null,null,null,null,null,null,null,null,null,null,null,null,null,null,null,null,null,10,"fraterna",10,"siderne.Øjne med korte mørke hår (han), meget korte, lyse (hun). Scu-"]
[null,null,null,null,null,null,null,null,null,null,null,null,null,null,null,null,null,null,null,null,null,null,null,null,null,null,null,null,null,null,null,null," ",null,11,"frontalis",11,"nens pande opsvulmet. Øjne med lange mørke hår (han), færre, kortere"]
[null,null,null,null,null,null,null,null,null,null,null,null,null,null,null,null,null,null,null,null,null,null,null,null,null,null,null,null,null,null,null,null,null,null,12,"gigantea",12,"Panden sortskinnende. Øjne med ret lange gullige hår. Scutellum med"]
[null,null,null,null,null,null,null,null,null,null,null,null,null,null,null,null,null,null,null,null,null,null,null,null,null,null,null,null,null,null,null,null,null,null,13,"grossa",13,"sorte hår. Scutellum uden børster, men med lange lyse hår. Brystet langt"]
[null,null,null,null,null,null,null,null,null,null,null,null,null,null,null,null,null,null,null,null,null,null,null,null,null,null,null,null,null,null,null,null,null,null,14,"illustrata",14,"med udstående lyse hår.  Øjnene har lang lys behåring. Scutellum uden"]
[null,null,null,null,null,null,null,null,null,null,null,null,null,null,null,null,null,null,null,null,null,null,null,null,null,null,null,null,null,null,null,null,null,null,15,"impressa",15,"følehornene, mest hos hunnen. Panden er skinnende. Øjenbehåringen"]
[null,null,null,null,null,null,null,null,null,null,null,null,null,null,null,null,null,null,null,null,null,null,null,null,null,null,null,null,null,null,null,null,null,null,16,"lasiopa   (=honesta)",16,"hornene, svagt bestøvet. Panden skinnende. Øjne med  meget korte lyse"]
[null,null,null,null,null,null,null,null,null,null,null,null,null,null,null,null,null,null,null,null,null,null,null,null,null,null,null,null,null,null,null,null,null,null,17,"latifrons  (=intonsa)",17,"udhulet under følehornene, lidt bestøvet. Panden skinnende. Øjne øverst "]
[null,null,null,null,null,null,null,null,null,null,null,null,null,null,null,null,null,null,null,null,null,null,null,null,null,null,null,null,null,null,null,null,null,null,18,"longula",18,"brune sidepletter. Øjne uden hår. Scutellum med 6-8 lange børster. Skuldre"]
[null,null,null,null,null,null,null,null,null,null,null,null,null,null,null,null,null,null,null,null,null,null,null,null,null,null,null,null,null,null,null,null,null,null,19,"mutabilis",19,"let. Panden bestøvet. Øjne med korte lyse hår (han), uden hår (hun). Scutellum"]
[null,null,null,null,null,null,null,null,null,null,null,null,null,null,null,null,null,null,null,null,null,null,null,null,null,null,null,null,null,null,null,null,null,null,20,"nigripes",20,"Hannens pande ikke helt bestøvet. Øjnene ubehårede. Brystet hos begge"]
[null,null,null,null,null,null,null,null,null,null,null,null,null,null,null,null,null,null,null,null,null,null,null,null,null,null,null,null,null,null,null,null,null,null,21,"pagana",21,"Panden skinnende. Øjnene uden hår, hannen om foråret måske med ganske få."]
[null,null,null,null,null,null,null,null,null,null,null,null,null,null,null,null,null,null,null,null,null,null,null,null,null,null,null,null,null,null,null,null,null,null,22,"proxima",22,"under følehornene, for neden bestøvet. Panden sortskinnende. Øjne lyst"]
[null,null,null,null,null,null,null,null,null,null,null,null,null,null,null,null,null,null,null,null,null,null,null,null,null,null,null,null,null,null,null,null,null,null,23,"pubera",23,"og ansigt kraftigt bestøvet, dog er hunnens pande skinnende. Øjne uden"]
[null,null,null,null,null,null,null,null,null,null,null,null,null,null,null,null,null,null,null,null,null,null,null,null,null,null,null,null,null,null,null,null,null,null,24,"rufimana ",24,"og hannens pande svagt bestøvet. Scutellum med mange hårlignende mørke"]
[null,null,null,null,null,null,null,null,null,null,null,null,null,null,null,null,null,null,null,null,null,null,null,null,null,null,null,null,null,null,null,null,null,null,25,"scutellata",25,"Hos hunnen gul plet på mundkantens sider. Hannens pande skinnende."]
[null,null,null,null,null,null,null,null,null,null,null,null,null,null,null,null,null,null,null,null,null,null,null,null,null,null,null,null,null,null,null,null,null,null,26,"soror",26,"pande skinnende. Øjne uden hår. Scutellum med mange tynde børster (han),"]
[null,null,null,null,null,null,null,null,null,null,null,null,null,null,null,null,null,null,null,null,null,null,null,null,null,null,null,null,null,null,null,null,null,null,27,"urbana  (=praecox)",27,"mest hos hunnen. Panden bestøvet langs øjnene. Scutellum med  børster,"]
[null,null,null,null,null,null,null,null,null,null,null,null,null,null,null,null,null,null,null,null,null,null,null,null,null,null,null,null,null,null,null,null,null,null,28,"uviformis",28,"Pande kraftigt bestøvet. Øjne med lyse hår (han), næsten nøgne (hun)."]
[null,null,null,null,null,null,null,null,null,null,null,null,null,null,null,null,null,null,null,null,null,null,null,null,null,null,null,null,null,null,null,null,null,null,29,"variabilis",29,"ende hår. Øjne med ret lang lys behåring. Scutellum med børster, mange og"]
[null,null,null,null,null,null,null,null,null,null,null,null,null,null,null,null,null,null,null,null,null,null,null,null,null,null,null,null,null,null,null,null,null,null,30,"velutina",30,"nende. Øjne med korte lyse hår. Scutellum med sorte børster. Bryst med over-"]
[null,null,null,null,null,null,null,null,null,null,null,null,null,null,null,null,null,null,null,null,null,null,null,null,null,null,null,null,null,null,null,null,null,null,31,"vernalis",31,"Panden skinnende, kun meget smalt bestøvet langs øjnene. Brystets overside "]
[null,null,null,null,null,null,null,null,null,null,null,null,null,null,null,null,null,null,null,null,null,null,null,null,null,null,null,null,null,null,null,null,null,null,32,"vicina   (=nasutula)",32,"sigtsknoppen tydeligt fremadrettet. Hannens pande bestøvet. Øjne uden"]
[null,null,null,null,null,null,null,null,null,null,null,null,null,null,null,null,null,null,null,null,null,null,null,null,null,null,null,null,null,null,null,null,null,null,33,"vulpina",33,"sigt med udstående hår, tydeligst hos han. Hannens pande skinnende."]
[]
[]
[null,null,null,null,null,null,null,null,null,null,null,null,null,null,null,null,null,null,null,null,null,null,null,null,null,null,null,null,null,null,null,null,null,3,1,"albipila",1,"uden børster, men med lange lyse hår. Kroppen med lang lys behåring."]
[null,null,null,null,null,null,null,null,null,null,null,null,null,null,null,null,null,null,null,null,null,null,null,null,null,null,null,null,null,null,null,null,null,null,2,"albitarsis",2,"hår (hun). Scutellum med lange tyne børster (han(), kortere og kraftigere"]
[null,null,null,null,null,null,null,null,null,null,null,null,null,null,null,null,null,null,null,null,null,null,null,null,null,null,null,null,null,null,null,null,null,null,3,"antiqua",3,"noget skinnende. Øjnene uden hår. Scutellum med får ret lange børster."]
[null,null,null,null,null,null,null,null,null,null,null,null,null,null,null,null,null,null,null,null,null,null,null,null,null,null,null,null,null,null,null,null,null,null,4,"bergenstammi",4,"med 4-8 sorte børster. Bryst og bagkrops overside og underside skinnende"]
[null,null,null,null,null,null,null,null,null,null,null,null,null,null,null,null,null,null,null,null,null,null,null,null,null,null,null,null,null,null,null,null,null,null,5,"canicularis",5,"uden børster. Bryst og bagkrop skinnende med orangegul behåring, opret"]
[null,null,null,null,null,null,null,null,null,null,null,null,null,null,null,null,null,null,null,null,null,null,null,null,null,null,null,null,null,null,null,null,null,null,6,"carbonaria",6,"og bagkrop skinnende sort, hunnens bagkrop lidt mere mat. Behåringen "]
[null,null,null,null,null,null,null,null,null,null,null,null,null,null,null,null,null,null,null,null,null,null,null,null,null,null,null,null,null,null,null,null,null,null,7,"chlorus",7,"med lange hår (han), eller kortere hår (hun). Kroppen svagt grønligt skin-"]
[null,null,null,null,null,null,null,null,null,null,null,null,null,null,null,null,null,null,null,null,null,null,null,null,null,null,null,null,null,null,null,null,null,null,8,"cynocephala",8,"behåret. Scutellum med meget tynde børster (han), meget korte, ofte "]
[null,null,null,null,null,null,null,null,null,null,null,null,null,null,null,null,null,null,null,null,null,null,null,null,null,null,null,null,null,null,null,null,null,null,9,"flavipes",9,"hannen lange hår. Brystet og den smalle bagkrop meget kort lyst behåret,"]
[null,null,null,null,null,null,null,null,null,null,null,null,null,null,null,null,null,null,null,null,null,null,null,null,null,null,null,null,null,null," ",null,null,null,10,"fraterna",10,"tellum med børster, hunnens meget korte eller helt manglende. Bryst og"]
[null,null,null,null,null,null,null,null,null,null,null,null,null,null,null,null,null,null,null,null,null,null,null,null,null,null,null,null,null,null,null,null,null,null,11,"frontalis",11,"og lyse (hun). Scutellum med lange mørke børster (han), kun 4 sorte (hun)."]
[null,null,null,null,null,null,null,null,null,null,null,null,null,null,null,null,null,null,null,null,null,null,null,null,null,null,null,null,null,null,null,null,null,null,12,"gigantea",12,"mange tynde børster. Bryst og bagkrop sortskinnende. Bagkroppens under-"]
[null,null,null,null,null,null,null,null,null,null,null,null,null,null,null,null,null,null,null,null,null,null,null,null,null,null,null,null,null,null,null,null,null,null,13,"grossa",13,"rødgult behåret. Bagkrop med bleggule hår (han),  eller rødgule hår (hun)."]
[null,null,null,null,null,null,null,null,null,null,null,null,null,null,null,null,null,null,null,null,null,null,null,null,null,null,null,null,null,null,null,null,null,null,14,"illustrata",14,"børster, men med lange hår. Kroppen er Humlebi-lignende. Bagkroppen"]
[null,null,null,null,null,null,null,null,null,null,null,null,null,null,null,null,null,null,null,null,null,null,null,null,null,null,null,null,null,null,null,null,null,null,15,"impressa",15,"er kort hos hannen, meget kort hos hunnen. Scutellum med kraftige sorte "]
[null,null,null,null,null,null,null,null,null,null,null,null,null,null,null,null,null,null,null,null,null,null,null,null,null,null,null,null,null,null,null,null,null,null,16,"lasiopa   (=honesta)",16,"hår, især hunnen. Scutellums sorte børster kortere end scutellum,  især"]
[null,null,null,null,null,null,null,null,null,null,null,null,null,null,null,null,null,null,null,null,null,null,null,null,null,null,null,null,null,null,null,null,null,null,17,"latifrons  (=intonsa)",17,"med spredt meget kort lys behåring (han), helt uden hår (hun). Bryst med "]
[null,null,null,null,null,null,null,null,null,null,null,null,null,null,null,null,null,null,null,null,null,null,null,null,null,null,null,null,null,null,null,null,null,null,18,"longula",18,"kan være gule, hos hunnen også scutellums spids. Brystet skinnende med "]
[null,null,null,null,null,null,null,null,null,null,null,null,null,null,null,null,null,null,null,null,null,null,null,null,null,null,null,null,null,null,null,null,null,null,19,"mutabilis",19,"med ca.8 sorte børster. Brystet med lang opret lys og mørk behåring (han)"]
[null,null,null,null,null,null,null,null,null,null,null,null,null,null,null,null,null,null,null,null,null,null,null,null,null,null,null,null,null,null,null,null,null,null,20,"nigripes",20,"køn kraftigt punkteret og derfor ret mat. Behåringen sort med lange og "]
[null,null,null,null,null,null,null,null,null,null,null,null,null,null,null,null,null,null,null,null,null,null,null,null,null,null,null,null,null,null,null,null,null,null,21,"pagana",21,"Scutellum med lange tynde børster. Bryst og bagkrop skinnende,. hannens"]
[null,null,null,null,null,null,null,null,null,null,null,null,null,null,null,null,null,null,null,null,null,null,null,null,null,null,null,null,null,null,null,null,null,null,22,"proxima",22,"behårede. Scutellum med mange hårlignende sorte børster (han),  færre"]
[null,null,null,null,null,null,null,null,null,null,null,null,null,null,null,null,null,null,null,null,null,null,null,null,null,null,null,null,null,null,null,null,null,null,23,"pubera",23,"hår. Scutellum med 6-10 børster. Bryst og bagkrop bestøvet og med meget"]
[null,null,null,null,null,null,null,null,null,null,null,null,null,null,null,null,null,null,null,null,null,null,null,null,null,null,null,null,null,null,null,null,null,null,24,"rufimana ",24,"børster. Brystet med opret tæt og lang mørk behåring. Hunnens kortere,"]
[null,null,null,null,null,null,null,null,null,null,null,null,null,null,null,null,null,null,null,null,null,null,null,null,null,null,null,null,null,null,null,null,null,null,25,"scutellata",25,"Øjne uden hår. Scutellum med 6-8 lange børster. Hunnens scutellum med"]
[null,null,null,null,null,null,null,null,null,null,null,null,null,null,null,null,null,null,null,null,null,null,null,null,null,null,null,null,null,null,null,null,null,null,26,"soror",26,"færre hos hun, der har scutellums spids gul. Bagkroppens underside mere "]
[null,null,null,null,null,null,null,null,null,null,null,null,null,null,null,null,null,null,null,null,null,null,null,null,null,null,null,null,null,null,null,null,null,null,27,"urbana  (=praecox)",27,"lange, tynde hos han, færre hos hun. Bagkrop smal hos begge køn. Undersiden"]
[null,null,null,null,null,null,null,null,null,null,null,null,null,null,null,null,null,null,null,null,null,null,null,null,null,null,null,null,null,null,null,null,null,null,28,"uviformis",28,"Scutellum med tynde sorte børster (han), lyse (hun). Bryst med udstående"]
[null,null,null,null,null,null,null,null,null,null,null,null,null,null,null,null,null,null,null,null,null,null,null,null,null,null,null,null,null,null,null,null,null,null,29,"variabilis",29,"lange (han), færre og kortere (hun). Bagkrop smal (han), bredere (hun).  Un-"]
[null,null,null,null,null,null,null,null,null,null,null,null,null,null,null,null,null,null,null,null,null,null,null,null,null,null,null,null,null,null,null,null,null,null,30,"velutina",30,"vejende lyse hår (han), kortere og skrå (hun). Bagkrop ovel, undersiden "]
[null,null,null,null,null,null,null,null,null,null,null,null,null,null,null,null,null,null,null,null,null,null,null,null,null,null,null,null,null,null,null,null,null,null,31,"vernalis",31,"med lang, oftest lys behåring (han), kortere og skrå (hun). Scutellum med"]
[null,null,null,null,null,null,null,null,null,null,null,null,null,null,null,null,null,null,null,null,null,null,null,null,null,null,null,null,null,null,null,null,null,null,32,"vicina   (=nasutula)",32,"hår. Scutellum med ca. 10 børster (han), ca. 6 (hun). Brystets overside"]
[null,null,null,null,null,null,null,null,null,null,null,null,null,null,null,null,null,null,null,null,null,null,null,null,null,null,null,null,null,null,null,null,null,null,33,"vulpina",33,"Øjne med lang lys behåring. Scutellum med lange tynde børster, hunnens"]
[]
[null,null,null,null,null,null,null,null,null,null,null,null,null,null,null,null,null,null,null,null,null,null,null,null,null,null,null,null,null,null,null,null,null,4,1,"albipila",1,"Undersiden noget bestøvet. Hannens lår sorte, hunnens gule. Skinneben"]
[null,null,null,null,null,null,null,null,null,null,null,null,null,null,null,null,null,null,null,null,null,null,null,null,null,null,null,null,null,null,null,null,null,null,2,"albitarsis",2,"(hun). Ben sorte, men midterste led på for- og mellemskinneben lyse. Hos"]
[null,null,null,null,null,null,null,null,null,null,null,null,null,null,null,null,null,null,null,null,null,null,null,null,null,null,null,null,null,null,null,null,null,null,3,"antiqua",3,"Bryst og bagkrop skinnende, også bagkroppens underside. Hannens"]
[null,null,null,null,null,null,null,null,null,null,null,null,null,null,null,null,null,null,null,null,null,null,null,null,null,null,null,null,null,null,null,null,null,null,4,"bergenstammi",4,"sort. Lår sorte med gul spids. Skinneben med mørke ringe, utydelige på"]
[null,null,null,null,null,null,null,null,null,null,null,null,null,null,null,null,null,null,null,null,null,null,null,null,null,null,null,null,null,null,null,null,null,null,5,"canicularis",5,"(han), skrå (hun). Bagkropsunderside skinnende. Lår sorte med gul spids."]
[null,null,null,null,null,null,null,null,null,null,null,null,null,null,null,null,null,null,null,null,null,null,null,null,null,null,null,null,null,null,null,null,null,null,6,"carbonaria",6,"lys, lang (han), kortere og skrå (hun). Bagkroppen hos begge køn bredest "]
[null,null,null,null,null,null,null,null,null,null,null,null,null,null,null,null,null,null,null,null,null,null,null,null,null,null,null,null,null,null,null,null,null,null,7,"chlorus",7,"nende. Behåringen lang og lys (han), kort og skrå (hun). Bagkroppens"]
[null,null,null,null,null,null,null,null,null,null,null,null,null,null,null,null,null,null,null,null,null,null,null,null,null,null,null,null,null,null,null,null,null,null,8,"cynocephala",8,"gullige (hun). Bryst blåsort skinnende. Bagkrop (inkl. undersiden) sortskin-"]
[null,null,null,null,null,null,null,null,null,null,null,null,null,null,null,null,null,null,null,null,null,null,null,null,null,null,null,null,null,null,null,null,null,null,9,"flavipes",9,"hannens skrå, hunnens nedliggende. Lår delvis sorte (han), mest gule (hun)."]
[null,null,null,null,null,null,null,null,null,null,null,null,null,null,null,null,null,null,null,null,null,null,null,null,null,null,null,null,null,null,null,null,null,null,10,"fraterna",10,"bagkrop ret bred hos begge køn, gulligt behåret. Bagkroppens underside"]
[null,null,null,null,null,null,null,null,null,null,null,null,null,null,null,null,null,null,null,null,null,null,null,null,null,null,null,null,null,null,null,null,null,null,11,"frontalis",11,"Bryst med opret lang lys behåring (han), kort og opret (hun). Bagkrop "]
[null,null,null,null,null,null,null,null,null,null,null,null,null,null,null,null,null,null,null,null,null,null,null,null,null,null,null,null,null,null,null,null,null,null,12,"gigantea",12,"side bestøvet. Bryst med ret lange oprette mørke hår (han), kun lyse hår"]
[null,null,null,null,null,null,null,null,null,null,null,null,null,null,null,null,null,null,null,null,null,null,null,null,null,null,null,null,null,null,null,null,null,null,13,"grossa",13,"Bagkropsspidsen med sorte hår hos begge køn. Undersiden bestøvet. Lår"]
[null,null,null,null,null,null,null,null,null,null,null,null,null,null,null,null,null,null,null,null,null,null,null,null,null,null,null,null,null,null,null,null,null,null,14,"illustrata",14,"flerfarvet i gråt, sort og rødt. Undersiden er bestøvet. Benene er så godt"]
[null,null,null,null,null,null,null,null,null,null,null,null,null,null,null,null,null,null,null,null,null,null,null,null,null,null,null,null,null,null,null,null,null,null,15,"impressa",15,"børster. Hunnens kortere, dog med to meget lange.  Brystet og bagkroppen"]
[null,null,null,null,null,null,null,null,null,null,null,null,null,null,null,null,null,null,null,null,null,null,null,null,null,null,null,null,null,null,null,null,null,null,16,"lasiopa   (=honesta)",16,"hunnens. Brystets overside med tæt kort lys behåring. Bagkroppens under-"]
[null,null,null,null,null,null,null,null,null,null,null,null,null,null,null,null,null,null,null,null,null,null,null,null,null,null,null,null,null,null,null,null,null,null,17,"latifrons  (=intonsa)",17,"tæt opret lys behåring, hunnens kortere og skrå. Bagkrop ret smal, under-"]
[null,null,null,null,null,null,null,null,null,null,null,null,null,null,null,null,null,null,null,null,null,null,null,null,null,null,null,null,null,null,null,null,null,null,18,"longula",18,"brunlig opret behåring (han), kort nedliggende og lysere (hun)."]
[null,null,null,null,null,null,null,null,null,null,null,null,null,null,null,null,null,null,null,null,null,null,null,null,null,null,null,null,null,null,null,null,null,null,19,"mutabilis",19,"eller kort og skrå (hun). Bagkroppen smal hos begge køn, undersiden skin- "]
[null,null,null,null,null,null,null,null,null,null,null,null,null,null,null,null,null,null,null,null,null,null,null,null,null,null,null,null,null,null,null,null,null,null,20,"nigripes",20," korte hår. Hunnens kortere end hannens. Bagkroppens behåring grå og "]
[null,null,null,null,null,null,null,null,null,null,null,null,null,null,null,null,null,null,null,null,null,null,null,null,null,null,null,null,null,null,null,null,null,null,21,"pagana",21,"aflang og lyst behåret, hunnens oval  med skrå behåring. Lår sorte. Skinne-"]
[null,null,null,null,null,null,null,null,null,null,null,null,null,null,null,null,null,null,null,null,null,null,null,null,null,null,null,null,null,null,null,null,null,null,22,"proxima",22,"men kraftigere (hun). Bryst og bagkrop skinnende. Bagkroppens  underside"]
[null,null,null,null,null,null,null,null,null,null,null,null,null,null,null,null,null,null,null,null,null,null,null,null,null,null,null,null,null,null,null,null,null,null,23,"pubera",23,"tæt gulbrun behåring, hunnens kortere. Bagkroppens underside kraftigt"]
[null,null,null,null,null,null,null,null,null,null,null,null,null,null,null,null,null,null,null,null,null,null,null,null,null,null,null,null,null,null,null,null,null,null,24,"rufimana ",24,"Scutellum med tynde sorte børster (han), lyse (hun). Bryst med lang tæt "]
[null,null,null,null,null,null,null,null,null,null,null,null,null,null,null,null,null,null,null,null,null,null,null,null,null,null,null,null,null,null,null,null,null,null,25,"scutellata",25,"gul spids. Bryst skinnende sort med opret lys behåring (han), kortere skrå"]
[null,null,null,null,null,null,null,null,null,null,null,null,null,null,null,null,null,null,null,null,null,null,null,null,null,null,null,null,null,null,null,null,null,null,26,"soror",26,"eller mindre skinnende. Lår sorte med gul spids. Skinneben gule, bortset"]
[null,null,null,null,null,null,null,null,null,null,null,null,null,null,null,null,null,null,null,null,null,null,null,null,null,null,null,null,null,null,null,null,null,null,27,"urbana  (=praecox)",27,"skinnende. Lår sorte. Skinneben gule med smalle sorte ringe, hos hunnen"]
[null,null,null,null,null,null,null,null,null,null,null,null,null,null,null,null,null,null,null,null,null,null,null,null,null,null,null,null,null,null,null,null,null,null,28,"uviformis",28,"tæt lys behåring, hunnens kortere. Bagkropsunderside delvis bestøvet. Lår"]
[null,null,null,null,null,null,null,null,null,null,null,null,null,null,null,null,null,null,null,null,null,null,null,null,null,null,null,null,null,null,null,null,null,null,29,"variabilis",29,"dersiden skinnende. Sidebehåringen lang og lys. Ben sorte, hunnens måske"]
[null,null,null,null,null,null,null,null,null,null,null,null,null,null,null,null,null,null,null,null,null,null,null,null,null,null,null,null,null,null,null,null,null,null,30,"velutina",30,"kraftigt bestøvet. Lår sorte. Skinneben midt på med brede sorte ringe, bre-"]
[null,null,null,null,null,null,null,null,null,null,null,null,null,null,null,null,null,null,null,null,null,null,null,null,null,null,null,null,null,null,null,null,null,null,31,"vernalis",31,"børster, der hos hanner er  lange og utydelige, hos hunner kortere og sorte."]
[null,null,null,null,null,null,null,null,null,null,null,null,null,null,null,null,null,null,null,null,null,null,null,null,null,null,null,null,null,null,null,null,null,null,32,"vicina   (=nasutula)",32,"med både korte lyse og længere sorte hår (han), korte lyse og skrå (hun)."]
[null,null,null,null,null,null,null,null,null,null,null,null,null,null,null,null,null,null,null,null,null,null,null,null,null,null,null,null,null,null,null,null,null,null,33,"vulpina",33,"kortere. Bryst med metalglans. Behåringen opret, lang tæt og mørk (han),"]
[]
[null,null,null,null,null,null,null,null,null,null,null,null,null,null,null,null,null,null,null,null,null,null,null,null,null,null,null,null,null,null,null,null,null,5,1,"albipila",1,"hos begge køn gule. Fødder overvejende gule. Vinger klare. 9-11 mm."]
[null,null,null,null,null,null,null,null,null,null,null,null,null,null,null,null,null,null,null,null,null,null,null,null,null,null,null,null,null,null,null,null,null,null,2,"albitarsis",2,"hunner ofte mørkere, dog altid lyse på undersiden. Hannens vinger mørk-"]
[null,null,null,null,null,null,null,null,null,null,null,null,null,null,null,null,null,null,null,null,null,null,null,null,null,null,null,null,null,null,null,null,null,null,3,"antiqua",3,"bryst med tæt sort behåring, hunnens kortere og lysere. Vingerne hos"]
[null,null,null,null,null,null,null,null,null,null,null,null,null,null,null,null,null,null,null,null,null,null,null,null,null,null,null,null,null,null,null,null,null,null,4,"bergenstammi",4,"bagbenene. Fødder gule med sort spids, bagfødder dog mørkere. Hunnens"]
[null,null,null,null,null,null,null,null,null,null,null,null,null,null,null,null,null,null,null,null,null,null,null,null,null,null,null,null,null,null,null,null,null,null,5,"canicularis",5,"spids. Skinneben gule med sorte ringe, bagskinnebenene dog mest gule."]
[null,null,null,null,null,null,null,null,null,null,null,null,null,null,null,null,null,null,null,null,null,null,null,null,null,null,null,null,null,null,null,null,null,null,6,"carbonaria",6,"mellem 3. og 4. led. Ben mørke, kun skinneben brunlige ved basis og spids,"]
[null,null,null,null,null,null,null,null,null,null,null,null,null,null,null,null,null,null,null,null,null,null,null,null,null,null,null,null,null,null,null,null,null,null,7,"chlorus",7,"underside skinnende. Lår sorte. Skinneben gule med brede sorte ringe."]
[null,null,null,null,null,null,null,null,null,null,null,null,null,null,null,null,null,null,null,null,null,null,null,null,null,null,null,null,null,null,null,null,null,null,8,"cynocephala",8,"nende.Bryst med opret tæt lang, ofte lys, behåring (han), kort og nedlig-"]
[null,null,null,null,null,null,null,null,null,null,null,null,null,null,null,null,null,null,null,null,null,null,null,null,null,null,null,null,null,null,null,null,null,null,9,"flavipes",9,"Skinneben gule. Fødder gule med mørk spids. Bagfødder lidt mørkere."]
[null,null,null,null,null,null,null,null,null,null,null,null,null,null,null,null,null,null,null,null,null,null,null,null,null,null,null,null,null,null,null,null,null,null,10,"fraterna",10,"skinnende. Lår sorte med gul spids. Skinneben med svage mørke ringe, ba-"]
[null,null,null,null,null,null,null,null,null,null,null,null,null,null,null,null,null,null,null,null,null,null,null,null,null,null,null,null,null,null,null,null,null,null,11,"frontalis",11,"smal hos begge køn, undersiden noget bestøvet .Lår sorte med gul spids."]
[null,null,null,null,null,null,null,null,null,null,null,null,null,null,null,null,null,null,null,null,null,null,null,null,null,null,null,null,null,null,null,null,null,null,12,"gigantea",12,"(hun). Lår sorte med rød spids.Skinneben rødlige med brede sorte ringe,"]
[null,null,null,null,null,null,null,null,null,null,null,null,null,null,null,null,null,null,null,null,null,null,null,null,null,null,null,null,null,null,null,null,null,null,13,"grossa",13,"sorte. Skinneben gule eller med svage mørke ringe. Fødderne er mørke."]
[null,null,null,null,null,null,null,null,null,null,null,null,null,null,null,null,null,null,null,null,null,null,null,null,null,null,null,null,null,null,null,null,null,null,14,"illustrata",14,"som helt sorte. Vingerne har ved vingemærket en stor brun plet. Også"]
[null,null,null,null,null,null,null,null,null,null,null,null,null,null,null,null,null,null,null,null,null,null,null,null,null,null,null,null,null,null,null,null,null,null,15,"impressa",15,"skinnende. Også bagkroppens underside skinnende. Brystets sorte behå-"]
[null,null,null,null,null,null,null,null,null,null,null,null,null,null,null,null,null,null,null,null,null,null,null,null,null,null,null,null,null,null,null,null,null,null,16,"lasiopa   (=honesta)",16," svagt bestøvet hos hunner. Lår sorte med gul spids. Skinneben sorte med "]
[null,null,null,null,null,null,null,null,null,null,null,null,null,null,null,null,null,null,null,null,null,null,null,null,null,null,null,null,null,null,null,null,null,null,17,"latifrons  (=intonsa)",17,"siden bestøvet. Lår sorte med gul spids. Skinneben med mørke ringe"]
[null,null,null,null,null,null,null,null,null,null,null,null,null,null,null,null,null,null,null,null,null,null,null,null,null,null,null,null,null,null,null,null,null,null,18,"longula",18,"Bagkroppens underside skinnende. Lår sorte med gul spids. Skinneben"]
[null,null,null,null,null,null,null,null,null,null,null,null,null,null,null,null,null,null,null,null,null,null,null,null,null,null,null,null,null,null,null,null,null,null,19,"mutabilis",19,"nende. Lår sorte med gul spids. Skinneben gule ved basis, forreste to par "]
[null,null,null,null,null,null,null,null,null,null,null,null,null,null,null,null,null,null,null,null,null,null,null,null,null,null,null,null,null,null,null,null,null,null,20,"nigripes",20,"sort (han), lysere (hun). Undersiden skinnende. Benene er helt sorte. "]
[null,null,null,null,null,null,null,null,null,null,null,null,null,null,null,null,null,null,null,null,null,null,null,null,null,null,null,null,null,null,null,null,null,null,21,"pagana",21,"ben gule med smalle sorte ringe. Fødder overvejende gule, sorte yderst."]
[null,null,null,null,null,null,null,null,null,null,null,null,null,null,null,null,null,null,null,null,null,null,null,null,null,null,null,null,null,null,null,null,null,null,22,"proxima",22,"skinnende. Hunnens bagkrop med grå  hårtvæbånd. Lår sorte med brune"]
[null,null,null,null,null,null,null,null,null,null,null,null,null,null,null,null,null,null,null,null,null,null,null,null,null,null,null,null,null,null,null,null,null,null,23,"pubera",23,"bestøvet. Ben helt sorte. Vinger noget gultonede ved basis, lidt mørkere "]
[null,null,null,null,null,null,null,null,null,null,null,null,null,null,null,null,null,null,null,null,null,null,null,null,null,null,null,null,null,null,null,null,null,null,24,"rufimana ",24,"underside noget bestøvet. Lår sorte med lidt brunere spids. Skinneben"]
[null,null,null,null,null,null,null,null,null,null,null,null,null,null,null,null,null,null,null,null,null,null,null,null,null,null,null,null,null,null,null,null,null,null,25,"scutellata",25,"(hun). Bagkroppens underside skinnende. Lår mørke med gul spids."]
[null,null,null,null,null,null,null,null,null,null,null,null,null,null,null,null,null,null,null,null,null,null,null,null,null,null,null,null,null,null,null,null,null,null,26,"soror",26,"fra bagerste, der har mørk ring. Fødder mest gule.Vinger klare.  8-10 mm. "]
[null,null,null,null,null,null,null,null,null,null,null,null,null,null,null,null,null,null,null,null,null,null,null,null,null,null,null,null,null,null,null,null,null,null,27,"urbana  (=praecox)",27,"næsten helt gule. Fødder næsten helt gule. Kløerne gule med sort spids."]
[null,null,null,null,null,null,null,null,null,null,null,null,null,null,null,null,null,null,null,null,null,null,null,null,null,null,null,null,null,null,null,null,null,null,28,"uviformis",28,"sorte med gul spids. Skinneben gule, måske svage mørke ringe.  Fødder gu-"]
[null,null,null,null,null,null,null,null,null,null,null,null,null,null,null,null,null,null,null,null,null,null,null,null,null,null,null,null,null,null,null,null,null,null,29,"variabilis",29," brune ved knæ og skinnebensspids. Vingerne mørktonede, især hos hannen."]
[null,null,null,null,null,null,null,null,null,null,null,null,null,null,null,null,null,null,null,null,null,null,null,null,null,null,null,null,null,null,null,null,null,null,30,"velutina",30,"dest på bagskinneben. Fødderne overvejende mørke, men i hver fald"]
[null,null,null,null,null,null,null,null,null,null,null,null,null,null,null,null,null,null,null,null,null,null,null,null,null,null,null,null,null,null,null,null,null,null,31,"vernalis",31,"Bagkroppen smal (han), bred (hun). Undersiden er skinnende. Lår sorte."]
[null,null,null,null,null,null,null,null,null,null,null,null,null,null,null,null,null,null,null,null,null,null,null,null,null,null,null,null,null,null,null,null,null,null,32,"vicina   (=nasutula)",32,"Bagkroppens underside er skinnende. Ben helt sorte. Vinger klare. "]
[null,null,null,null,null,null,null,null,null,null,null,null,null,null,null,null,null,null,null,null,null,null,null,null,null,null,null,null,null,null,null,null,null,null,33,"vulpina",33,"kortere, lysere og skrå (hun).  Lår sorte med brun spids. Skinneben og"]
[]
[null,null,null,null,null,null,null,null,null,null,null,null,null,null,null,null,null,null,null,null,null,null,null,null,null,null,null,null,null,null,null,null,null,6,1,"albipila",1,"Ret alm. forårsart 10.III-20:V.  Den mindre, meget sjældne  C. nebulosa"]
[null,null,null,null,null,null,null,null,null,null,null,null,null,null,null,null,null,null,null,null,null,null,null,null,null,null,null,null,null,null,null,null,null,null,2,"albitarsis",2,"tonede, hunnens mere gultonede. 7-11 mm. Almindelig. 1.V. - 10.VIII."]
[null,null,null,null,null,null,null,null,null,null,null,null,null,null,null,null,null,null,null,null,null,null,null,null,null,null,null,null,null,null,null,null,null,null,3,"antiqua",3,"hannen bruntonede. Hunnens vinger mere gultonede. 6-8 mm. Ret"]
[null,null,null,null,null,null,null,null,null,null,null,null,null,null,null,null,null,null,null,null,null,null,null,null,null,null,null,null,null,null,null,null,null,null,4,"bergenstammi",4,"ben noget lysere. Baglår har lang sort behåring yderst. Vinger svagt"]
[null,null,null,null,null,null,null,null,null,null,null,null,null,null,null,null,null,null,null,null,null,null,null,null,null,null,null,null,null,null,null,null,null,null,5,"canicularis",5,"Fødderne er gule. Vingerne klare. 12-15 mm. Sjælden. Findes kun i"]
[null,null,null,null,null,null,null,null,null,null,null,null,null,null,null,null,null,null,null,null,null,null,null,null,null,null,null,null,null,null,null,null,null,null,6,"carbonaria",6,"hunnens dog lidt lysere, også på de forreste fodpar. Vinger meget lange,"]
[null,null,null,null,null,null,null,null,null,null,null,null,null,null,null,null,null,null,null,null,null,null,null,null,null,null,null,null,null,null,null,null,null,null,7,"chlorus",7,"Fødderne overvejende mørke. Vingerne gullige, især inderst. 10-11 mm."]
[null,null,null,null,null,null,null,null,null,null,null,null,null,null,null,null,null,null,null,null,null,null,null,null,null,null,null,null,null,null,null,null,null,null,8,"cynocephala",8,"gende (hun). Lår sorte, gul spids. Skinneben med sorte ringe. Forreste to"]
[null,null,null,null,null,null,null,null,null,null,null,null,null,null,null,null,null,null,null,null,null,null,null,null,null,null,null,null,null,null,null,null,null,null,9,"flavipes",9,"Vinger gultonede. (7)10-12 mm. Meget sjælden. Kun fundet i Nordsjæl-"]
[null,null,null,null,null,null,null,null,null,null,null,null,null,null,null,null,null,null,null,null,null,null,null,null,null,null,null,null,null,null,null,null,null,null,10,"fraterna",10,"gerste ofte helt gule (han), alle hunnens  oftest helt gule. Bagfødder mørke "]
[null,null,null,null,null,null,null,null,null,null,null,null,null,null,null,null,null,null,null,null,null,null,null,null,null,null,null,null,null,null,null,null,null,null,11,"frontalis",11,"Skinneben med sorte ringe i ydre halvdel, bagerste mørkest. Fødder brunsorte."]
[null,null,null,null,null,null,null,null,null,null,null,null,null,null,null,null,null,null,null,null,null,null,null,null,null,null,null,null,null,null,null,null,null,null,12,"gigantea",12,"bagerste mørkest. Fødder sorte.  Hunnensben  lidt lysere, også mellem-"]
[null,null,null,null,null,null,null,null,null,null,null,null,null,null,null,null,null,null,null,null,null,null,null,null,null,null,null,null,null,null,null,null,null,null,13,"grossa",13,"Vingerne er gullige ved basis, længere ude mere mørktonede."]
[null,null,null,null,null,null,null,null,null,null,null,null,null,null,null,null,null,null,null,null,null,null,null,null,null,null,null,null,null,null,null,null,null,null,14,"illustrata",14,"vingforkanten noget brunlig.  9-12 mm.  Sjælden. 10.VI-10.IX."]
[null,null,null,null,null,null,null,null,null,null,null,null,null,null,null,null,null,null,null,null,null,null,null,null,null,null,null,null,null,null,null,null,null,null,15,"impressa",15,"ring opret (han), skrå (hun). Benene sorte, knæene måske lidt brune. "]
[null,null,null,null,null,null,null,null,null,null,null,null,null,null,null,null,null,null,null,null,null,null,null,null,null,null,null,null,null,null,null,null,null,null,16,"lasiopa   (=honesta)",16," brungul basis, bagerste helt sorte. Fødder helt sorte. Vinger svagt brunto-"]
[null,null,null,null,null,null,null,null,null,null,null,null,null,null,null,null,null,null,null,null,null,null,null,null,null,null,null,null,null,null,null,null,null,null,17,"latifrons  (=intonsa)",17,"under midten, især bagerste. Fødder mørke, især bagfødder. Vinger svagt brun-"]
[null,null,null,null,null,null,null,null,null,null,null,null,null,null,null,null,null,null,null,null,null,null,null,null,null,null,null,null,null,null,null,null,null,null,18,"longula",18,"Skinneben med brede mørke ringe yderst. Fødderne mest gule. Vinger"]
[null,null,null,null,null,null,null,null,null,null,null,null,null,null,null,null,null,null,null,null,null,null,null,null,null,null,null,null,null,null,null,null,null,null,19,"mutabilis",19,"også ved spidsen. Bagfødder sorte, de øvrige har 2.-4. led gule. Vinger"]
[null,null,null,null,null,null,null,null,null,null,null,null,null,null,null,null,null,null,null,null,null,null,null,null,null,null,null,null,null,null,null,null,null,null,20,"nigripes",20,"Vingerne hos begge køn tydeligt formørkede. 8-10 mm. Ikke almindelig. "]
[null,null,null,null,null,null,null,null,null,null,null,null,null,null,null,null,null,null,null,null,null,null,null,null,null,null,null,null,null,null,null,null,null,null,21,"pagana",21,"Hannens første bagfodsled opsvulmet, hunnens 2. og 3. led brede. Vinger"]
[null,null,null,null,null,null,null,null,null,null,null,null,null,null,null,null,null,null,null,null,null,null,null,null,null,null,null,null,null,null,null,null,null,null,22,"proxima",22,"spidser. Skinneben med brede mørke ringe, bagskinneben mørkest. Fød-"]
[null,null,null,null,null,null,null,null,null,null,null,null,null,null,null,null,null,null,null,null,null,null,null,null,null,null,null,null,null,null,null,null,null,null,23,"pubera",23,"udadtil. 6-8. mm. Ikke almindelig. 20.IV - 20.VI."]
[null,null,null,null,null,null,null,null,null,null,null,null,null,null,null,null,null,null,null,null,null,null,null,null,null,null,null,null,null,null,null,null,null,null,24,"rufimana ",24,"sorte med brungul basis og spids. Fødder sorte, inderste led mere brune."]
[null,null,null,null,null,null,null,null,null,null,null,null,null,null,null,null,null,null,null,null,null,null,null,null,null,null,null,null,null,null,null,null,null,null,25,"scutellata",25,"Skinneben med brede sorte ringe. Fødderne delvis gule.  Vinger svagt"]
[null,null,null,null,null,null,null,null,null,null,null,null,null,null,null,null,null,null,null,null,null,null,null,null,null,null,null,null,null,null,null,null,null,null,26,"soror",26,"Meget sjælden. Kun et enkelt gammelt fund fra 1908. 1.VI. - 31.VIII."]
[null,null,null,null,null,null,null,null,null,null,null,null,null,null,null,null,null,null,null,null,null,null,null,null,null,null,null,null,null,null,null,null,null,null,27,"urbana  (=praecox)",27,"Hvis de er helt sorte er det C. psilophthalma. Vingerne klare. 6-7 mm. Almin-"]
[null,null,null,null,null,null,null,null,null,null,null,null,null,null,null,null,null,null,null,null,null,null,null,null,null,null,null,null,null,null,null,null,null,null,28,"uviformis",28,"le med yderste led sorte, sjældent mørkere. Vinger klare. 7-9 mm. Meget "]
[null,null,null,null,null,null,null,null,null,null,null,null,null,null,null,null,null,null,null,null,null,null,null,null,null,null,null,null,null,null,null,null,null,null,29,"variabilis",29,"10-12 mm.  Ret alm. 1.V-31.VII.   BEM: C.nigripes har ubehårede øjne. "]
[null,null,null,null,null,null,null,null,null,null,null,null,null,null,null,null,null,null,null,null,null,null,null,null,null,null,null,null,null,null,null,null,null,null,30,"velutina",30,"for-og mellemfødder mere gule. Vinger svagt bruntonede (han), klare (hun)."]
[null,null,null,null,null,null,null,null,null,null,null,null,null,null,null,null,null,null,null,null,null,null,null,null,null,null,null,null,null,null,null,null,null,null,31,"vernalis",31,"Alle skinneben med  sorte ringe. For- og mellemfødder ikke helt sorte."]
[null,null,null,null,null,null,null,null,null,null,null,null,null,null,null,null,null,null,null,null,null,null,null,null,null,null,null,null,null,null,null,null,null,null,32,"vicina   (=nasutula)",32,"6-8 mm. Ikke almindelig. 20.V.- 10.VIII."]
[null,null,null,null,null,null,null,null,null,null,null,null,null,null,null,null,null,null,null,null,null,null,null,null,null,null,null,null,null,null,null,null,null,null,33,"vulpina",33,"i hvert fald bagfødder sorte. Bagkroppens underside bestøvet. Vinger klare."]
[]
[null,null,null,null,null,null,null,null,null,null,null,null,null,null,null,null,null,null,null,null,null,null,null,null,null,null,null,null,null,null,null,null,null,7,1,"albipila",1,"ligner og er vanskelig at bestemme. Se litteraturen."]
[null,null,null,null,null,null,null,null,null,null,null,null,null,null,null,null,null,null,null,null,null,null,null,null,null,null,null,null,null,null,null,null,null,null,2,"albitarsis",2,"Hvis yderste forfodsled ikke har parallelle sider, er det C. ranunculi."]
[null,null,null,null,null,null,null,null,null,null,null,null,null,null,null,null,null,null,null,null,null,null,null,null,null,null,null,null,null,null,null,null,null,null,3,"antiqua",3,"sjælden. 20.IV-20.V."]
[null,null,null,null,null,null,null,null,null,null,null,null,null,null,null,null,null,null,null,null,null,null,null,null,null,null,null,null,null,null,null,null,null,null,4,"bergenstammi",4,"gultonede. 9-12 mm. Ret sjælden. 1.V. - 30.IX."]
[null,null,null,null,null,null,null,null,null,null,null,null,null,null,null,null,null,null,null,null,null,null,null,null,null,null,null,null,null,null,null,null,null,null,5,"canicularis",5,"Øst- og Sydøstjylland. 20.VII - 20.X."]
[null,null,null,null,null,null,null,null,null,null,null,null,null,null,null,null,null,null,null,null,null,null,null,null,null,null,null,null,null,null,null,null,null,null,6,"carbonaria",6,"mørke i ydre halvdel. 9-11 mm. Ikke almindelig. 10.v. - 30.IX."]
[null,null,null,null,null,null,null,null,null,null,null,null,null,null,null,null,null,null,null,null,null,null,null,null,null,null,null,null,null,null,null,null,null,null,7,"chlorus",7,"Ret almindelig. 1.IV.-10.VI."]
[null,null,null,null,null,null,null,null,null,null,null,null,null,null,null,null,null,null,null,null,null,null,null,null,null,null,null,null,null,null,null,null,null,null,8,"cynocephala",8,"fodpar gule inderst. Vinger korte, mørkere yderst. 8-9 mm. Sj. 20.v.-10.IX."]
[null,null,null,null,null,null,null,null,null,null,null,null,null,null,null,null,null,null,null,null,null,null,null,null,null,null,null,null,null,null,null,null,null,null,9,"flavipes",9,"land, f. eks. Tisvildeleje, sti langs stejlepladsen. 20.IV - 10.VI."]
[null,null,null,null,null,null,null,null,null,null,null,null,null,null,null,null,null,null,null,null,null,null,null,null,null,null,null,null,null,null,null,null,null,null,10,"fraterna",10,"øverst, fødder ellers mere eller mindre lyse. 9-10 mm. Ret alm. 1.V. - 30.VI."]
[null,null,null,null,null,null,null,null,null,null,null,null,null,null,null,null,null,null,null,null,null,null,null,null,null,null,null,null,null,null,null,null,null,null,11,"frontalis",11,"Vinger klare. 7-9 mm. Sjælden og lokal (Himmerland). 15.IV - 30.VI.."]
[null,null,null,null,null,null,null,null,null,null,null,null,null,null,null,null,null,null,null,null,null,null,null,null,null,null,null,null,null,null,null,null,null,null,12,"gigantea",12,"fødder. Vinger ret bruntonede, især hannens. 8-10. mm. Ret alm. 1.V.-10.VII."]
[null,null,null,null,null,null,null,null,null,null,null,null,null,null,null,null,null,null,null,null,null,null,null,null,null,null,null,null,null,null,null,null,null,null,13,"grossa",13,"Bem.: C. albipila og C. chloris har gule følehorn. C. albipila-hunnen gule lår."]
[null,null,null,null,null,null,null,null,null,null,null,null,null,null,null,null,null,null,null,null,null,null,null,null,null,null,null,null,null,null,null,null,null,null,14,"illustrata",14]
[null,null,null,null,null,null,null,null,null,null,null,null,null,null,null,null,null,null,null,null,null,null,null,null,null,null,null,null,null,null,null,null,null,null,15,"impressa",15,"Vingbasis kraftigt gultonet.  6-8 mm.  Almindelig. 10.V - 20.IX."]
[null,null,null,null,null,null,null,null,null,null,null,null,null,null,null,null,null,null,null,null,null,null,null,null,null,null,null,null,null,null,null,null,null,null,16,"lasiopa   (=honesta)",16,"nede. 8-10 mm. Ikke almindelig. 1.V. - 30.VI."]
[null,null,null,null,null,null,null,null,null,null,null,null,null,null,null,null,null,null,null,null,null,null,null,null,null,null,null,null,null,null,null,null,null,null,17,"latifrons  (=intonsa)",17,"bruntonede. 6-9 mm. Ikke alm. 10.V.-31.VIII, flest i august."]
[null,null,null,null,null,null,null,null,null,null,null,null,null,null,null,null,null,null,null,null,null,null,null,null,null,null,null,null,null,null,null,null,null,null,18,"longula",18,"noget gullige. 7-9 mm. Ret sjælden. 10.VII - 30.IX."]
[null,null,null,null,null,null,null,null,null,null,null,null,null,null,null,null,null,null,null,null,null,null,null,null,null,null,null,null,null,null,null,null,null,null,19,"mutabilis",19,"lidt mørktonede. 6-9 mm. Ret almindelig. 1.VI - 31.VIII."]
[null,null,null,null,null,null,null,null,null,null,null,null,null,null,null,null,null,null,null,null,null,null,null,null,null,null,null,null,null,null,null,null,null,null,20,"nigripes",20," 1.V. - 10.VII."]
[null,null,null,null,null,null,null,null,null,null,null,null,null,null,null,null,null,null,null,null,null,null,null,null,null,null,null,null,null,null,null,null,null,null,21,"pagana",21,"svagt gultonede. 6-8 mm. Almindelig. 1.IV.- 10.IX."]
[null,null,null,null,null,null,null,null,null,null,null,null,null,null,null,null,null,null,null,null,null,null,null,null,null,null,null,null,null,null,null,null,null,null,22,"proxima",22,"der mest mørke.  Vinger svagt bruntonede. 8-9 mm. Ikke alm. 10.V. 10.IX."]
[null,null,null,null,null,null,null,null,null,null,null,null,null,null,null,null,null,null,null,null,null,null,null,null,null,null,null,null,null,null,null,null,null,null,23,"pubera",23]
[null,null,null,null,null,null,null,null,null,null,null,null,null,null,null,null,null,null,null,null,null,null,null,null,null,null,null,null,null,null,null,null,null,null,24,"rufimana ",24,"8-11 mm. Ret almindelig. 20.IV - 20.VI."]
[null,null,null,null,null,null,null,null,null,null,null,null,null,null,null,null,null,null,null,null,null,null,null,null,null,null,null,null,null,null,null,null,null,null,25,"scutellata",25,"bruntonede. (7)8-10 mm. Ret almindelig. 1.VII. - 10.IX."]
[null,null,null,null,null,null,null,null,null,null,null,null,null,null,null,null,null,null,null,null,null,null,null,null,null,null,null,null,null,null,null,null,null,null,26,"soror",26]
[null,null,null,null,null,null,null,null,null,null,null,null,null,null,null,null,null,null,null,null,null,null,null,null,null,null,null,null,null,null,null,null,null,null,27,"urbana  (=praecox)",27,"delig. Lille skinnende forårsart, 10.IV-10.VI."]
[null,null,null,null,null,null,null,null,null,null,null,null,null,null,null,null,null,null,null,null,null,null,null,null,null,null,null,null,null,null,null,null,null,null,28,"uviformis",28,"sjælden. 10.V. - 31.V. Kun når kabbeleje blomstrer."]
[null,null,null,null,null,null,null,null,null,null,null,null,null,null,null,null,null,null,null,null,null,null,null,null,null,null,null,null,null,null,null,null,null,null,29,"variabilis",29,"C. impressa har tydeligt gule vingebaser. C. albitarsis lysere forfødder. "]
[null,null,null,null,null,null,null,null,null,null,null,null,null,null,null,null,null,null,null,null,null,null,null,null,null,null,null,null,null,null,null,null,null,null,30,"velutina",30,"7-9 mm. Ret almindelig. 20.Vi. - 31.VIII. "]
[null,null,null,null,null,null,null,null,null,null,null,null,null,null,null,null,null,null,null,null,null,null,null,null,null,null,null,null,null,null,null,null,null,null,31,"vernalis",31,"Vinger klare. 6-7 mm.  Almindelig. 10.V-!0.X."]
[null,null,null,null,null,null,null,null,null,null,null,null,null,null,null,null,null,null,null,null,null,null,null,null,null,null,null,null,null,null,null,null,null,null,32,"vicina   (=nasutula)",32]
[null,null,null,null,null,null,null,null,null,null,null,null,null,null,null,null,null,null,null,null,null,null,null,null,null,null,null,null,null,null,null,null,null,null,33,"vulpina",33,"8-10 mm. Sjælden. Sydligs Østjylland og Fyn. 10.V. - 30.VIII."]

{"sheet":"Ark2","index":1,"n_rows":0,"n_cols":0,"rows_kept":0,"cut":false,"hidden":false,"merged":[]}

{"sheet":"Ark3","index":2,"n_rows":0,"n_cols":0,"rows_kept":0,"cut":false,"hidden":false,"merged":[]}